Cogmind - Beta 17.1 @@@ ROGUE MODE // 2026.09.13 @ 13:54:16 Player: puppuppit Result: Destroyed by H-77 Assassin with Coil Gun Performance ------------- Evolutions (7) 3500 Regions Visited (32) 6400 Robots Destroyed (862) 4310 Value Destroyed (48059) 48059 Prototype IDs (69) 1380 Alien Tech Used (16) 3200 Bonus (39156) 39156 TOTAL SCORE: 106005 Bonus ------- Triggered High Security 2000 High Alert Combat Kills 20114 Follower Combat Kills 3861 Hunted by Unchained 500 Entered Garrisons 800 Met Data Miner 300 Acquired ECA 300 Met Zhirov 300 Met Warlord at Base 500 MAIN.C Attacked Warlord 500 Warlord Defense Kills 4888 MAIN.C Attacked Proxy Base 500 Used Core Reset Matrix 3000 Scanned by Researcher 500 Pursued by Intercept 500 Met Sigix 2000 Friendly Fire -1407 Cogmind --------- Core Integrity 0/1300 Matter 11/300 Energy 325/325 System Corruption 9% Temperature Cool (0) +ITN Movement Walking (125) +NEM 1 Location -3/Section 7 Parts ------- > --- POWER (2) -------- Reinforced Antimatter Reactor > --- PROPULSION (7) --- Improved Thunder Leg Improved Thunder Leg Improved Thunder Leg Heavy Armored Exoskeleton > --- UTILITY (9) ------ Advanced Cooling System High-capacity Storage Unit Advanced Targeting Computer Experimental Targeting Computer Weapon Mount Improved Armor Integrity Analyzer Spacefold Activator > --- WEAPON (4) ------- Linear Accelerator Compact Linear Accelerator Fusion Bomb Launcher > --- INVENTORY (22) --- Improved Thunder Leg Improved Matter Compressor (1) Weapon Mount Advanced Recoil Stabilizer Graphene Brace Sigix Terminator (1) Peak State ------------ > --- POWER ------------ Vortex Chain Reactor > --- PROPULSION ------- Biometal Leg Biometal Leg Heavy Armored Exoskeleton Enhanced Biometal Leg > --- UTILITY ---------- High-capacity Storage Unit Advanced Targeting Computer Experimental Targeting Computer Experimental Core Analyzer Improved Armor Integrity Analyzer Advanced Weapon Cycler Thermal Barrier Advanced Force Field Spacefold Activator > --- WEAPON ----------- Enhanced Nova Cannon Linear Accelerator Compact Linear Accelerator Compact Linear Accelerator > --- INVENTORY -------- Reinforced Antimatter Reactor Myomer Leg Heavy Armored Exoskeleton Advanced Cooling System Matter Compressor Improved Matter Compressor Weapon Mount Weapon Mount Advanced Recoil Stabilizer Graphene Brace Transdimensional Reconstructor Enhanced Nova Cannon Enhanced Nova Cannon Fusion Bomb Launcher Fusion Bomb Launcher Sigix Terminator [Rating: 197] Favorites ----------- Power Light Quantum Reactor Engine Improved Ion Engine Power Core Enhanced Nuclear Core Reactor Light Quantum Reactor Propulsion Light Treads Treads Light Treads Leg Heavy Armored Exoskeleton Wheel Compact Wheel Hover Unit Gravmag System Utility High-capacity Storage Unit Device Weapon Mount Storage High-capacity Storage Unit Processor Targeting Computer Hackware Hacking Suite Protection Improved Medium Armor Plating Artifact Spacefold Activator Weapon Railgun Energy Gun Variable Charge Gun Energy Cannon Enhanced Nova Cannon Ballistic Gun Railgun Ballistic Cannon Assault Cannon Launcher Fusion Bomb Launcher Special Weapon RU-N14's Throwing Claymores v3 Impact Weapon Makeshift Hammer Slashing Weapon Chainsword Piercing Weapon Spear Build | -11 -10 -10 -10 -9 -8 -8 -8 -8 -7 -7 -7 -7 -6 -6 -6 -6 -6 -5 -5 -5 -5 -4 -4 -4 -4 -4 -4 -4 -3 -3 -3 -3 ------- Run | Yrd Mat Min Exi Min Mat Gar Mat Gar Fac Low Low Dat Pro Fac Gar Fac Gar Fac Upp Upp Zhi Pro Fac Was Fac Upp Upp War Pro Res Qua Sec Slots Evolved 14 | . . . . . 4 . . . 2 . . . . 2 . . . 2 . . . . 2 . . . . . . 2 . . Power 1 | . . . . . . . . . . . . . . . . . . . . . . . 1 . . . . . . . . . Propulsion 4 | . . . . . . . . . 2 . . . . 1 . . . . . . . . 1 . . . . . . . . . Utility 7 | . . . . . 2 . . . . . . . . 1 . . . 2 . . . . . . . . . . . 2 . . Weapon 2 | . . . . . 2 . . . . . . . . . . . . . . . . . . . . . . . . . . . Parts Attached 343 | 9 8 . 1 3 20 13 16 11 17 4 5 . 3 11 18 5 11 9 6 13 4 16 36 5 6 2 2 14 2 32 25 16 Power 37 | 1 2 . . 1 1 2 3 3 2 . . . . . 2 1 3 . 1 . . 1 6 1 1 . . 1 . 3 2 . Engine 13 | 1 1 . . 1 1 2 2 3 . . . . . . 2 . . . . . . . . . . . . . . . . . Core 14 | . 1 . . . . . 1 . 2 . . . . . . 1 2 . 1 . . 1 3 . 1 . . . . 1 . . Reactor 10 | . . . . . . . . . . . . . . . . . 1 . . . . . 3 1 . . . 1 . 2 2 . Propulsion 64 | 2 . . . 2 6 4 2 4 4 1 . . 1 3 8 . . . 1 1 . 3 4 1 1 1 . 3 . 3 4 5 Treads 33 | 2 . . . 1 6 4 2 3 4 1 . . 1 1 6 . . . 1 1 . . . . . . . . . . . . Leg 27 | . . . . . . . . . . . . . . 1 2 . . . . . . 3 3 1 1 1 . 3 . 3 4 5 Wheel 1 | . . . . 1 . . . . . . . . . . . . . . . . . . . . . . . . . . . . Hover 3 | . . . . . . . . 1 . . . . . 1 . . . . . . . . 1 . . . . . . . . . Flight . | . . . . . . . . . . . . . . . . . . . . . . . . . . . . . . . . . Utility 118 | 3 3 . 1 . 7 3 4 2 5 1 4 . 1 7 1 1 4 6 1 8 3 5 14 1 2 . . 4 1 8 12 6 Device 55 | 1 . . . . . 1 1 2 . 1 1 . . 4 1 . 2 3 1 7 . 4 6 1 1 . . 2 . 4 9 3 Storage 11 | 2 2 . 1 . . . 1 . . . . . 1 . . 1 . . . . 1 . 1 . . . . . . . 1 . Processor 21 | . 1 . . . 2 1 . . 2 . . . . 1 . . . 2 . . 1 . 4 . . . . 2 1 2 1 1 Hackware 12 | . . . . . 2 . 1 . 2 . 1 . . 1 . . . . . . . . 2 . . . . . . 1 1 1 Protection 18 | . . . . . 3 1 1 . 1 . 2 . . 1 . . 2 1 . 1 1 1 1 . 1 . . . . 1 . . Artifact 1 | . . . . . . . . . . . . . . . . . . . . . . . . . . . . . . . . 1 Weapon 124 | 3 3 . . . 6 4 7 2 6 2 1 . 1 1 7 3 4 3 3 4 1 7 12 2 2 1 2 6 1 18 7 5 Energy Gun 5 | . . . . . . . . . . . . . . . . . . 1 2 1 . 1 . . . . . . . . . . Energy Cannon 11 | . . . . . . . . . . . 1 . . . 3 2 . . . 1 . . . . . . . . . . 3 1 Ballistic Gun 46 | 3 1 . . . 5 2 3 1 . 1 . . . . . . 1 1 . . . 6 9 . 2 . 2 . . 9 . . Ballistic Cannon 32 | . 2 . . . . . 3 1 4 . . . 1 1 4 1 2 1 1 . 1 . 1 1 . . . . . 5 1 2 Launcher 16 | . . . . . 1 1 1 . 2 1 . . . . . . 1 . . . . . 1 1 . 1 . . . 2 3 1 Special Weapon 10 | . . . . . . 1 . . . . . . . . . . . . . . . . . . . . . 5 1 2 . 1 Impact Weapon 1 | . . . . . . . . . . . . . . . . . . . . 1 . . . . . . . . . . . . Slashing Weapon 1 | . . . . . . . . . . . . . . . . . . . . . . . 1 . . . . . . . . . Piercing Weapon 2 | . . . . . . . . . . . . . . . . . . . . 1 . . . . . . . 1 . . . . Special Melee Weapon . | . . . . . . . . . . . . . . . . . . . . . . . . . . . . . . . . . Unidentified Prototypes 28 | . . . . . 1 . 1 . 2 . 1 . . . . 1 . . . . 2 1 2 . . 1 . 5 . 3 7 1 Corrupted Parts 1 | . . . . . . . . . . . . . . . . . . . . . 1 . . . . . . . . . . . System Corruption 12 | . . . . . . . . . . . . . . . . . . . . . 12 . . . . . . . . . . . Parts Lost 66 | . . . . . . 3 6 4 6 . . . 3 . 1 1 4 6 . 10 . . 1 . . . . 1 . 6 . 14 Power 5 | . . . . . . 1 2 1 . . . . . . . . . . . . . . . . . . . . . . . 1 Propulsion 11 | . . . . . . . 1 1 . . . . 2 . . . . 1 . 1 . . . . . . . . . 1 . 4 Utility 19 | . . . . . . 1 1 . 1 . . . . . . . 2 2 . 4 . . 1 . . . . . . 3 . 4 Weapon 31 | . . . . . . 1 2 2 5 . . . 1 . 1 1 2 3 . 5 . . . . . . . 1 . 2 . 5 Highest Loss Streak 12 | . . . . . . 1 3 1 2 . . . 2 . 1 1 3 4 . 8 . . 1 . . . . 1 . 3 . 12 To Critical Strikes 2 | . . . . . . . . . . . . . . . . . . . . 1 . . . . . . . . . . . 1 Average Backups 16 | 1 13 16 19 19 19 19 19 19 19 18 18 18 17 17 16 13 13 12 13 14 14 16 16 17 17 16 17 17 15 14 15 14 Power 1 | . . . 1 3 2 . . . 1 1 1 1 1 1 1 1 . . 1 1 1 1 . 1 1 1 1 . 1 1 1 . Propulsion 1 | . . 1 1 1 2 3 3 3 1 2 3 3 1 . . 1 1 1 1 1 2 2 1 2 2 1 1 . 1 1 1 1 Utility 7 | 1 6 8 7 9 8 8 7 8 10 7 7 7 7 8 8 6 5 5 5 6 7 7 8 9 9 9 10 9 8 5 6 6 Weapon 5 | . 5 7 8 5 6 7 7 6 6 5 5 5 4 5 4 3 3 4 3 2 2 3 2 3 3 3 3 4 3 5 6 4 Tool/Special . | . . . . . . . . . . . . . . . . . . . . . . . . . . . . . . . . . Unused Backups 72 | . 3 1 1 7 10 3 4 2 5 2 . . . 3 3 1 1 4 . . 1 5 3 . 1 1 . 4 . 4 2 1 Power 9 | . . . . . 3 . . 2 2 . . . . 2 . . . . . . . . . . . . . . . . . . Propulsion 11 | . . . . . 2 1 3 . . . . . . . . . . . . . . 3 . . 1 . . . . . 1 . Utility 35 | . 3 1 1 3 1 2 . . 2 2 . . . 1 3 . . 4 . . 1 1 2 . . 1 . 2 . 3 1 1 Weapon 17 | . . . . 4 4 . 1 . 1 . . . . . . 1 1 . . . . 1 1 . . . . 2 . 1 . . Tool/Special . | . . . . . . . . . . . . . . . . . . . . . . . . . . . . . . . . . Average Slot Usage (%) 89 | . 100 100 75 100 99 99 99 99 99 100 100 100 99 99 95 80 77 73 67 74 76 80 83 83 84 84 85 84 85 85 81 77 Engine 3 | . 9 14 14 14 9 9 6 9 . . . . . . 3 3 . . . . . . . . . . . . . . . . Core 2 | . 4 . . . . . 2 . 6 7 7 7 7 6 2 3 4 5 5 5 5 5 3 . . . . . . 1 . . Reactor 2 | . . . . . . . . . . . . . . . . . 1 . . . . . 6 10 9 10 10 10 10 7 4 3 Treads 12 | . 28 28 28 27 18 18 17 17 29 30 30 30 29 32 26 . . . 2 4 5 1 . . . . . . . . . . Leg 7 | . . . . . . . . . . . . . . . 1 13 13 10 5 5 5 9 14 14 15 16 20 20 20 17 18 17 Device 10 | . 1 . . . . . 2 7 3 . 1 . 5 9 19 20 21 24 23 22 19 18 14 15 15 15 15 15 15 11 15 15 Storage 7 | . 14 14 14 14 9 9 9 9 7 7 7 7 7 6 6 6 6 5 5 5 5 5 5 5 5 5 5 5 5 4 4 4 Processor 12 | . 12 14 14 14 11 17 18 18 9 15 15 15 15 11 . . . 3 5 5 8 5 9 10 10 10 10 10 12 20 19 17 Hackware 1 | . . . . . 12 . 1 . 8 . . . . 1 . . . . . . . . 4 . . . . . . 2 . . Protection 3 | . . . . . 2 8 4 1 . 6 5 7 1 1 6 6 4 4 4 4 5 7 1 5 5 5 5 5 2 . . . Energy Cannon 1 | . . . . . . . . . . . 5 7 1 4 5 6 3 . . . 5 1 . . . . . . . . 5 4 Ballistic Gun 11 | . 10 . . . 35 35 28 18 7 6 1 . . . . . 2 . . . . 16 20 17 21 19 19 18 19 13 . . Ballistic Cannon 10 | . 17 28 4 28 . . 6 16 20 23 21 23 28 20 20 20 16 15 5 2 . 1 . . . . . . . 4 10 10 Peak Build Rating 197 | 9 11 9 10 11 35 33 36 39 51 51 53 52 54 74 101 104 108 119 102 105 107 112 135 139 134 141 142 155 159 172 185 197 Average Rating 85 | 6 9 9 8 10 31 30 31 34 45 50 51 52 52 67 79 102 103 112 96 97 97 108 129 131 133 136 141 147 155 167 176 178 On Entrance 80 | . 9 9 9 10 11 33 28 35 33 50 51 52 52 52 71 101 103 105 74 102 98 107 110 132 134 134 141 142 152 158 168 185 Avg Prop Armor Cover (%) 3 | . . . . . . . . . . . . . . . . . . . 3 4 5 4 2 . . . . . . 2 . 16 Naked Turns . | . . . . . . . . . . . . . . . . . . . . . . . . . . . . . . . . . Heaviest Build 145 | 14 51 51 51 53 69 80 75 76 74 70 77 75 80 96 103 105 110 117 106 115 90 103 122 128 128 131 133 141 138 143 145 141 Greatest Support 176 | 40 40 40 40 40 40 50 50 50 106 106 106 106 106 130 168 118 118 118 90 90 90 115 140 138 140 165 165 165 165 168 176 176 Greatest Overweight (x) 33 | . 1 1 1 1 3 1 1 1 . . . . . . 33 . 3 1 1 1 . 1 . 1 . . . . . 1 . 1 Average Overweight (x) . | . . 1 1 1 1 1 1 1 . . . . . . . . . . . . . . . . . . . . . . . . Largest Inventory Capacity 22 | 8 20 20 20 20 20 20 20 20 20 20 20 20 20 20 20 20 20 20 20 20 20 20 20 20 20 20 20 20 20 20 20 22 Average Capacity 19 | 7 15 20 20 20 20 20 20 20 20 20 20 20 20 20 20 20 20 20 20 20 20 20 20 20 20 20 20 20 20 20 20 20 Most Carried 20 | 4 16 18 20 20 20 20 20 20 20 20 20 20 20 20 20 20 20 20 20 20 20 20 20 20 20 20 20 20 20 20 20 20 Average Carried 19 | 1 13 16 19 19 19 19 19 19 19 19 20 20 19 19 19 19 19 19 18 19 19 19 19 20 20 19 20 19 19 19 19 18 Final Capacity 22 | 8 20 20 20 20 20 20 20 20 20 20 20 20 20 20 20 20 20 20 20 20 20 20 20 20 20 20 20 20 20 20 20 22 Final Carried 20 | 3 16 17 20 20 20 20 20 20 20 20 20 20 20 20 20 20 20 20 20 20 20 20 20 20 20 20 20 20 20 20 20 20 Class Distribution -------------------- 36% | Scavenger-Gunner 31% | Gunner 12% | Mutant 7% | Scientist-Gunner Dominant Class ---------------- Mutant | -10/Materials Mutant | -10/Mines Mutant | -10/Exiles Mutant | -9/Mines Scavenger-Gunner | -8/Materials Scavenger-Gunner | -8/Garrison Scavenger-Gunner | -8/Materials Scavenger-Gunner | -8/Garrison Scavenger-Gunner | -7/Factory Gunner | -7/Lower Caves Gunner | -7/Lower Caves Gunner | -7/Data Miner Gunner | -6/Proximity Caves Gunner | -6/Factory Scavenger-Gunner | -6/Garrison Gunner | -6/Factory Gunner | -6/Garrison Gunner | -5/Factory Gunner | -5/Upper Caves Derelict-Mutant | -5/Upper Caves Derelict-Mutant | -5/Zhirov Scavenger-Tank | -4/Proximity Caves Scientist-Gunner | -4/Factory Scavenger-Gunner | -4/Waste Scavenger-Gunner | -4/Factory Scientist-Gunner | -4/Upper Caves Scavenger-Gunner | -4/Upper Caves Scavenger-Gunner | -4/Warlord Scientist-Gunner | -3/Proximity Caves Scavenger-Gunner | -3/Research Gunner | -3/Quarantine Alien-Gunner | -3/Section 7 Resources | -11 -10 -10 -10 -9 -8 -8 -8 -8 -7 -7 -7 -7 -6 -6 -6 -6 -6 -5 -5 -5 -5 -4 -4 -4 -4 -4 -4 -4 -3 -3 -3 -3 ----------- Run | Yrd Mat Min Exi Min Mat Gar Mat Gar Fac Low Low Dat Pro Fac Gar Fac Gar Fac Upp Upp Zhi Pro Fac Was Fac Upp Upp War Pro Res Qua Sec Matter Collected 37279 | 421 1036 333 111 157 1509 1161 941 1796 1781 321 472 . 503 940 1345 450 1475 1926 666 676 364 3110 2498 540 577 440 755 1156 523 4029 3226 2041 Remotely 1125 | . . . . . . . . 221 794 . . . . . . . . . . 71 . . . . . . . . . . . 39 Salvage Created 38937 | 241 792 162 . 130 2135 1480 1194 1268 2415 . 171 . 350 872 1240 862 1037 594 416 978 114 876 3904 1513 1077 278 1363 1344 660 4556 5296 1619 Parts 1560 | 25 54 9 . 13 132 70 66 70 96 . 9 . 14 50 61 31 51 26 4 38 2 33 183 9 58 15 51 28 22 209 86 45 Haulers Intercepted 12 | . 1 . . . 4 . 3 . 3 . . . . . . . . . . . . . . . . . . . . . 1 . Recyclers Shooed 18 | . 4 . . . 1 . . . 2 . . . . . . 2 . . . . . . 1 . . . . . . 7 1 . Parts Field Recycled . | . . . . . . . . . . . . . . . . . . . . . . . . . . . . . . . . . Retrieved Matter . | . . . . . . . . . . . . . . . . . . . . . . . . . . . . . . . . . Parts Self-Destructed 267 | . . . . . . . . . . . 5 . 12 . . . . . 3 19 . 122 . . . 25 60 . 21 . . . Prevented 25 | . . . . . . . . . . . . . . . . . . . . . 2 21 . . . 2 . . . . . . Parts Restored . | . . . . . . . . . . . . . . . . . . . . . . . . . . . . . . . . . Kills | -11 -10 -10 -10 -9 -8 -8 -8 -8 -7 -7 -7 -7 -6 -6 -6 -6 -6 -5 -5 -5 -5 -4 -4 -4 -4 -4 -4 -4 -3 -3 -3 -3 ------- Run | Yrd Mat Min Exi Min Mat Gar Mat Gar Fac Low Low Dat Pro Fac Gar Fac Gar Fac Upp Upp Zhi Pro Fac Was Fac Upp Upp War Pro Res Qua Sec Combat Hostiles Destroyed 676 | . 10 4 . 1 27 31 24 29 60 . 5 . 15 20 32 5 46 19 5 27 . 13 47 6 14 7 18 39 13 52 76 31 Melee 1 | . . . . . . . . . . . . . . . . . . . . 1 . . . . . . . . . . . . Guns 238 | . 4 . . . 25 28 13 13 1 . . . . . . . 2 . . 1 . 13 39 1 14 4 16 22 9 33 . . Cannons 213 | . 6 4 . 1 . . 6 10 16 . 4 . 8 17 19 5 21 14 3 2 . . . . . . . 3 . 6 42 26 AOE 197 | . . . . . 2 3 5 6 43 . . . 7 2 11 . 21 5 2 22 . . 8 5 . 3 2 13 4 13 16 4 Classes Destroyed 33 | 3 6 1 . 2 4 2 2 . . . 1 . 1 . . . 1 . . 1 . 1 . 1 . 1 . 2 . . 4 . Worker 42 | 2 6 1 . 2 5 . 1 . 2 . . . . 5 . . . . . . . . 6 . 1 . . . . 7 3 1 Builder 18 | . . . . 1 6 . 1 . 1 . . . . 2 . 1 . . . . . . 2 . 1 . . . . 1 2 . Tunneler 9 | 5 2 . . . . . . . . . . . . . . . . . . . . . . . . . . . . 2 . . Hauler 12 | . 1 . . . 4 . 3 . 3 . . . . . . . . . . . . . . . . . . . . . 1 . Recycler 44 | 1 4 2 . 1 4 . 1 . 3 . . . . . . 5 . . . . . . 8 . 1 . . . . 10 3 1 Carrier 4 | . . . . . . . . . . . . . . . . . . . . . . . . . . . . . . . 4 . Minesweeper 2 | . . . . . . . . . . . . . . . . . . . . . . 1 . . . . . . 1 . . . Mechanic 9 | . 1 . . . . . . . 3 . . . . . . . . . . . . . 1 . . . . . . 1 3 . Operator 13 | . 3 . . . 3 . . . 3 . . . . 1 . 1 . 1 . . . . . . . . . . . . . 1 Drone 3 | . . . . . . . . . . . . . 1 . . . . . . . . . . . . . . . 2 . . . Watcher 25 | . 1 . . . 4 . . . . . . . . 2 . 4 . 1 . . . . 5 . 2 . . . . 2 3 1 Swarmer 113 | . 3 2 . . 3 4 5 4 3 . . . 4 4 3 2 11 6 1 13 . . 11 . 4 4 1 11 1 8 5 . Cutter 3 | . . . . . . . . . . . . . . . . . 3 . . . . . . . . . . . . . . . Saboteur 3 | . . . . . . . . . . . . . . . . . . . . 1 . 1 . . . . . . . . 1 . Grunt 248 | . 7 1 . . 10 14 11 12 25 . 2 . 6 9 12 1 24 4 3 10 . 9 13 . 4 2 10 8 4 17 23 7 Brawler 30 | . . . . . 1 2 2 . 4 . 1 . 3 . 1 . . . . . . . 1 . 1 . 2 1 1 1 7 2 Duelist 22 | . . . . . 1 1 . . 6 . . . . . 1 . . 1 . . . 1 2 . . . 1 . . . 6 2 Protector 13 | . . . . . . . 1 . 6 . . . . . . . . 1 . . . . . . . . . 1 . . 3 1 Researcher 2 | . . . . . . . . . . . . . . . . . . . . . . . . . . . . . . . . 2 Sentry 74 | . . . . 1 8 7 3 6 4 . . . 1 2 8 . 2 4 1 1 . 1 8 . 2 1 2 . 1 4 3 4 Demolisher 3 | . . 1 . . . . . . . . . . . . . . . 1 . . . . . . . . . 1 . . . . Specialist 12 | . . . . . 2 . . 2 . . . . . . 3 . . . . . . . . . . . . 1 2 . 2 . Hunter 49 | . . . . . 2 . 1 2 9 . . . . 3 3 1 . 2 . 1 . . 2 . 3 . . 1 . 8 4 7 Programmer 74 | . . . . . . 3 . 3 3 . 1 . . 2 1 1 4 . . . . 1 10 . . . 2 9 1 13 15 5 Heavy 1 | . . . . . . . 1 . . . . . . . . . . . . . . . . . . . . . . . . . Behemoth 8 | . . . . . . 1 . . . . . . . . . . 2 . . 1 . . . . . . . 2 1 1 . . Compactor 6 | . . . . . . . . . . . . . . . . . . . . . . . . 6 . . . . . . . . S7 Guard 2 | . . . . . . . . . . . . . . . . . . . . . . . . . . . . . . . . 2 Lightning 3 | . . . . . . . . . . . . . . . . . . . . . . . . . . . . . . . 3 . Tracker 1 | . . . . . . . . . . . . . . . . . . . . . . . . . . . . . . . . 1 Investigator 1 | . . . . . . . . . . . . . . . . . . . . . . . . . . . . . . . 1 . Striker 1 | . . . . . . . . . . . . . . . . . . . . . . . . . . . . 1 . . . . Executioner 4 | . . . . . . . . . . . . . . . . . . . . . . . . . . . . 2 . . 2 . Alpha 7 1 | . . . . . . . . . . . . . . . . . . . . . . . . . . . . . . . 1 . Fortress 1 | . . . . . . . . . . . . . . . . . . . . . . . . . . . . . . . 1 . Samaritan 1 | . . . . . . . . . . . . . . . . . . . . . . . . . . 1 . . . . . . Surgeon 1 | . . . . . . . . . . . . . . . . . . . . . . . . . . . 1 . . . . . Thug 2 | . . . . . . . . . . . . . . . . . . . . . . . . . . . 1 1 . . . . Guerrilla 1 | . . . . . . . . . . . . . . . 1 . . . . . . . . . . . . . . . . . Mutant 1 | . . . . . . . . . . . 1 . . . . . . . . . . . . . . . . . . . . . Infiltrator 1 | . . . . . . . . . . . . . . . . 1 . . . . . . . . . . . . . . . . Best Kill Streak 36 | 4 6 2 . 1 7 6 9 5 36 . 2 . 6 4 10 5 15 6 5 5 . 7 15 4 6 3 6 12 5 11 18 5 Combat Bots Only 34 | . 2 2 . 1 3 6 8 5 34 . 2 . 6 3 10 2 15 5 5 5 . 7 10 4 5 3 6 12 5 10 14 5 Max Kills in Single Turn 6 | 1 1 1 . 1 2 2 2 2 5 . 1 . 3 2 4 2 4 3 2 3 . 1 3 2 3 3 3 5 2 3 6 2 Gunslinging 2 | . . . . . . 1 . . . . . . . . . . . . . . . . 1 . 1 . . 2 . . . . Exploded 5 | . . . . . 2 1 2 2 4 . . . 3 1 3 . 4 3 1 3 . . 3 1 . 3 2 4 2 3 5 2 Melee 1 | . . . . . . . . . . . . . . . . . . . . 1 . . . . . . . . . . . . Uniques/NPCs Destroyed . | . . . . . . . . . . . . . . . . . . . . . . . . . . . . . . . . . Combat | -11 -10 -10 -10 -9 -8 -8 -8 -8 -7 -7 -7 -7 -6 -6 -6 -6 -6 -5 -5 -5 -5 -4 -4 -4 -4 -4 -4 -4 -3 -3 -3 -3 -------- Run | Yrd Mat Min Exi Min Mat Gar Mat Gar Fac Low Low Dat Pro Fac Gar Fac Gar Fac Upp Upp Zhi Pro Fac Was Fac Upp Upp War Pro Res Qua Sec Hostile Shots Fired 2600 | . 44 23 . . 91 85 87 96 187 . 14 . 79 35 124 26 108 145 17 113 . 23 193 . 12 18 62 57 21 348 223 369 Missed 894 | . 13 7 . . 30 30 25 22 69 . 5 . 19 14 51 13 37 48 7 36 . 5 73 . 6 7 22 18 6 117 85 129 Hits 1706 | . 31 16 . . 61 55 62 74 118 . 9 . 60 21 73 13 71 97 10 77 . 18 120 . 6 11 40 39 15 231 138 240 Melee 19 | . . . . . . . . . . . . . 5 . . . 2 2 . . . 2 4 . . . . . . . 1 3 Projectile 1687 | . 31 16 . . 61 55 62 74 118 . 9 . 55 21 73 13 69 95 10 77 . 16 116 . 6 11 40 39 15 231 137 237 AOE 5 | . . 2 . . . . . . . . . . . . . . 1 1 . . . . . . . . . 1 . . . . Critical Strikes 91 | . . . . . 3 5 1 4 2 . . . 1 . . . 1 11 . 7 . 2 6 . . . 2 1 1 18 12 14 Actively Blocked 11 | . . . . . . . . . . . . . . . . . . . . . . 1 . . . . . . . 9 1 . Part Disruptions 9 | . . . . . . . . . . . . . . . 1 . 1 . . . . . . . . . 1 . . 3 1 2 Damage Taken 25249 | . 334 202 . . 835 816 1200 1257 1672 . 129 . 810 229 653 346 976 2136 189 1369 . 232 1258 . 136 178 404 978 172 3238 1884 3616 Core 2861 | . 48 23 . . 123 126 80 105 217 . . . 32 15 66 . 91 179 5 68 . . 63 . . 33 24 136 10 203 240 974 Absorbed by Shields 8183 | . . . . . . 104 . 8 . . . . . 82 276 . . 244 64 281 . 162 1310 . 145 186 429 300 143 1172 1265 2012 Redirected to Shielding 217 | . . . . . . . . . 66 . 47 . . . . . . . . . . 104 . . . . . . . . . . Ignored by Resistances 1193 | . . . . . . . 24 62 . . . . 12 27 50 . 17 . . . . . . . . . . . 71 183 86 661 Regen/Repaired (Parts) 1564 | . 37 . . . 193 . 130 . 159 . . . . . . . . . . . . 149 . 70 31 18 . 81 . 564 132 . Core Remaining (%) 69 | 100 . . . 71 . . . 21 . . . . 64 . . . 79 . . . . 74 . . . . . . 76 . . . Volleys Fired 1471 | 12 78 11 . 6 82 70 44 98 76 . 24 . 20 36 59 26 70 43 27 51 . 27 101 12 25 25 32 50 20 122 136 88 Largest 4 | 2 2 2 . 2 4 4 4 4 4 . 4 . 4 4 4 4 4 3 2 3 . 4 4 4 4 4 4 4 4 4 4 4 Hottest 348 | 40 60 60 . 60 106 114 131 136 158 . 201 . 201 219 248 255 234 171 110 274 . 125 144 156 136 152 150 140 154 216 348 290 Shots Fired 4434 | 24 156 24 . 12 325 208 171 258 245 . 53 . 67 121 165 74 186 112 30 96 . 110 379 38 100 61 121 183 78 446 334 257 Gun 2375 | 24 83 . . . 324 192 136 112 45 . 1 . . . . . 6 . 23 61 . 110 373 18 100 45 120 164 73 365 . . Cannon 1816 | . 73 24 . 12 . . 29 126 165 . 51 . 62 116 159 73 162 108 4 22 . . . . . . . . . 67 317 246 Launcher 223 | . . . . . 1 15 6 20 35 . 1 . 5 5 6 1 18 4 3 13 . . 6 20 . 16 1 4 4 14 14 11 Special 20 | . . . . . . 1 . . . . . . . . . . . . . . . . . . . . . 15 1 . 3 . Kinetic 3720 | 24 156 24 . 12 324 192 165 238 210 . 36 . 56 94 101 47 112 108 4 19 . 110 373 18 100 45 120 164 73 432 202 161 Thermal 471 | . . . . . . . . . . . 16 . 6 22 58 26 56 . 23 64 . . . . . . . . . . 115 85 Explosive 187 | . . . . . . 4 1 5 12 . 1 . 5 5 6 1 18 4 3 13 . . 6 20 . 16 1 19 5 14 17 11 Electromagnetic 55 | . . . . . 1 11 5 15 23 . . . . . . . . . . . . . . . . . . . . . . . Robot Hit Streak 65 | 9 11 5 . 5 17 16 19 29 22 . 11 . 17 38 23 14 31 32 15 20 . 9 39 20 22 22 18 65 36 37 39 35 Robot Miss Streak 7 | 3 4 3 . 2 5 3 4 3 5 . 2 . 4 1 2 4 7 3 1 3 . 3 3 1 1 1 3 3 1 2 1 2 Penetration Max 2 | . . . . . 1 . 1 1 1 . . . . . 1 1 1 1 . . . . 1 1 1 . 1 2 . 2 . . Secondary Targets 44 | . 1 . . . 2 5 1 . . . . . . . . . . . . . . 6 6 . 5 . 5 6 . 7 . . Max Gunslinging Chain 2 | . 1 . . . 1 2 1 . . . . . . . . . . . . . . 1 2 . 1 . 1 2 . 1 . . Shots Hit Robots 2827 | 12 97 14 . 6 198 115 112 136 153 . 26 . 44 66 93 43 109 77 23 73 8 76 258 29 65 29 84 138 53 303 234 153 Core Hits 1841 | 11 34 8 . 6 75 61 55 82 230 . 8 . 32 51 108 32 100 33 22 75 1 36 145 12 38 25 46 82 35 172 140 86 Critical Kills 44 | . . . . . 1 . 1 . . . 1 . . 1 2 2 3 . . 1 . 2 5 . 2 1 1 1 . 16 3 1 Critical Parts Destroyed 42 | . . . . . 3 . 1 1 . . . . . . . . . . . . . 2 6 . 2 1 5 . . 21 . . Critical Strikes 179 | . 3 . . 1 4 . 4 5 7 . 1 . 2 3 10 5 6 14 1 7 1 4 11 1 4 2 7 4 . 46 19 7 Burn 4 | . . . . . . . . . . . . . . . . . . . . 4 . . . . . . . . . . . . Meltdown 13 | . . . . . . . . . . . 1 . . 1 2 2 2 . . 1 . . . . . . . . . . 3 1 Destroy 76 | . . . . . 4 . 2 1 . . . . . . . . 1 . . . . 4 11 1 4 2 7 1 . 38 . . Blast 82 | . 3 . . 1 . . 2 4 7 . . . 2 2 8 3 3 14 1 2 . . . . . . . . . 8 16 6 Sever 3 | . . . . . . . . . . . . . . . . . . . . . . . . . . . . 3 . . . . Impale 1 | . . . . . . . . . . . . . . . . . . . . . 1 . . . . . . . . . . . Melee Attacks 17 | . . . . . . . . . . . . . . . . . . . . 6 8 2 1 . . . . . . . . . Impact 6 | . . . . . . . . . . . . . . . . . . . . 3 2 1 . . . . . . . . . . Slashing 1 | . . . . . . . . . . . . . . . . . . . . . . . 1 . . . . . . . . . Piercing 10 | . . . . . . . . . . . . . . . . . . . . 3 6 1 . . . . . . . . . . Sneak Attacks 2 | . . . . . . . . . . . . . . . . . . . . . . 2 . . . . . . . . . . Combat Hostiles . | . . . . . . . . . . . . . . . . . . . . . . . . . . . . . . . . . Follow-up Attacks 3 | . . . . . . . . . . . . . . . . . . . . . 2 1 . . . . . . . . . . Damage Inflicted 118656 | 125 1508 250 . 106 4108 2780 2878 4492 9850 . 681 . 1907 1992 4510 1852 7382 4576 1047 5115 506 1845 9210 2551 1903 1717 3193 8302 2049 10895 13015 8311 Guns 38477 | 125 634 . . . 3551 2189 1757 1194 562 . . . . . . . 58 . 458 1053 . 1751 7287 442 1877 796 2899 4310 1230 6304 . . Cannons 40827 | . 874 250 . 106 . . 400 1691 2505 . 681 . 1058 1751 2938 1591 3769 4137 201 1031 . . . . . . . . . 1570 9526 6748 Explosions 37844 | . . . . . 557 591 710 1607 6783 . . . 849 238 1567 261 3555 401 388 2936 . . 1923 2109 . 921 294 3474 761 3021 3335 1563 Melee 695 | . . . . . . . . . . . . . . . . . . . . 95 506 94 . . . . . . . . . . Ramming 83 | . . . . . . . 11 . . . . . . 3 5 . . 38 . . . . . . 26 . . . . . . . Kinetic 67781 | 125 1508 250 . 106 3551 2189 2157 2885 3067 . 454 . 930 1134 1891 1047 2867 4137 201 933 . 1751 7287 442 1877 796 2899 4310 1230 7874 5677 4206 Thermal 13647 | . . . . . . . 145 95 952 . 227 . 128 617 1047 544 960 . 458 1151 . . 932 . . . . . . . 3849 2542 Explosive 33312 | . . . . . 539 488 201 896 4524 . . . 849 238 1567 261 3555 401 388 2936 . . 991 2109 . 921 294 3474 761 3021 3335 1563 Electromagnetic 2408 | . . . . . 18 103 364 616 1307 . . . . . . . . . . . . . . . . . . . . . . . Impact 209 | . . . . . . . . . . . . . . . . . . . . . 164 45 . . . . . . . . . . Slashing 730 | . . . . . . . . . . . . . . . . . . . . . . . . . . . . 518 58 . 154 . Piercing 486 | . . . . . . . . . . . . . . . . . . . . 95 342 49 . . . . . . . . . . Highest Corruption 16 | . 2 2 2 2 . . 4 4 2 2 1 . 5 . . . 1 . . . 12 12 5 . . . 1 1 2 15 16 9 Average Corruption 4 | . 1 2 2 2 . . 4 4 1 1 1 . 5 . . . 1 . . . 12 8 2 . . . 1 1 1 8 7 6 Corruption Purged 27 | . . . . . . . . . . 2 1 . . . . . . . . . . 5 5 . . . . . . . 14 . Corruption Blocked . | . . . . . . . . . . . . . . . . . . . . . . . . . . . . . . . . . Effects 544 | . 30 15 14 18 . . 26 76 4 . 6 . 32 . . . 14 . . . . 60 34 . . . 2 1 5 48 125 34 Message Errors 153 | . 6 3 4 7 . . 8 21 . . . . 11 . . . 6 . . . . 22 7 . . . . 1 . 13 35 9 Matter Fused 110 | . 2 2 6 2 . . 5 18 2 . . . 5 . . . 4 . . . . 11 7 . . . 1 . 3 6 25 11 Heat Flow Errors 60 | . 5 2 1 2 . . 3 6 . . 1 . 4 . . . 1 . . . . 8 5 . . . . . . 5 14 3 Energy Discharges 67 | . 3 3 1 4 . . 4 14 . . 1 . 4 . . . . . . . . 3 3 . . . 1 . 1 7 14 4 Parts Rejected 6 | . . . . . . . . 1 . . . . . . . . . . . . . . . . . . . . . 1 2 2 Parts Fused 9 | . 2 . . . . . . . . . . . . . . . . . . . . 2 2 . . . . . . . 3 . Data Loss (minor) 59 | . 6 3 1 2 . . 4 5 . . 2 . 5 . . . 1 . . . . 7 6 . . . . . . 5 10 2 Data Loss (major) 18 | . . . 1 1 . . . 4 . . . . 2 . . . . . . . . 3 1 . . . . . . 1 5 . Misfires 34 | . 3 2 . . . . 1 4 2 . . . 1 . . . 2 . . . . 3 2 . . . . . 1 3 8 2 Alerts 6 | . . . . . . . . . . . 1 . . . . . . . . . . 1 . . . . . . . . 4 . Weapon Failures 22 | . 3 . . . . . 1 3 . . 1 . . . . . . . . . . . 1 . . . . . . 7 5 1 Overload Shots 11 | . . . . . . . . . . . . . . . . . 4 . . 7 . . . . . . . . . . . . Effects 1 | . . . . . . . . . . . . . . . . . . . . 1 . . . . . . . . . . . . Short Circuit 1 | . . . . . . . . . . . . . . . . . . . . 1 . . . . . . . . . . . . Overflow Damage 2800 | . 32 . . . 4 . 35 49 188 . 14 . 31 31 41 135 304 158 11 110 81 . 193 . . 13 19 172 . 266 706 207 Projectiles 1548 | . 32 . . . . . . 44 24 . 14 . 31 . 34 135 96 158 3 41 . . . . . . . 46 . 77 683 130 Explosions 1171 | . . . . . 4 . 35 5 164 . . . . 31 7 . 208 . 8 69 . . 193 . . 13 19 126 . 189 23 77 Melee 81 | . . . . . . . . . . . . . . . . . . . . . 81 . . . . . . . . . . . Knockbacks 165 | . 14 2 . . . . . 12 7 . 5 . 6 10 10 8 11 15 . . . . . . . . . . . 9 33 23 Impact . | . . . . . . . . . . . . . . . . . . . . . . . . . . . . . . . . . Kinetic 157 | . 14 2 . . . . . 10 7 . 5 . 6 10 10 8 10 14 . . . . . . . . . . . 7 32 22 Secondary 8 | . . . . . . . . 2 . . . . . . . . 1 1 . . . . . . . . . . . 2 1 1 Self-Inflicted Damage 1013 | . . . . . . 36 48 86 99 . . . 24 . 59 35 . . 54 137 . . 42 . . 142 . . . 41 57 153 Shots 34 | . . . . . . 1 1 5 4 . . . 1 . 3 2 . . 2 3 . . 2 . . 3 . . . 1 2 4 Rammed 3 | . . . . . . . 1 . . . . . . 1 1 . . . . . . . . . . . . . . . . . Targets Rammed 7 | . . . . . . . 1 . . . . . . 1 1 . . 3 . . . . . . 1 . . . . . . . Kicked 4 | . . . . . . . . . . . . . . . . . . 3 . . . . . . 1 . . . . . . . Crushed . | . . . . . . . . . . . . . . . . . . . . . . . . . . . . . . . . . Highest Temperature 510 | . 167 227 112 188 291 362 358 315 216 . 324 . 304 379 144 144 167 26 . 510 . 239 247 27 30 60 45 36 59 208 465 302 Average Temperature 78 | . 34 106 64 62 70 103 90 101 87 . 102 . 133 121 45 50 22 17 . 159 . 97 22 18 8 16 18 17 11 50 115 116 Received Heat Transfer 4655 | . 84 . . . 216 285 324 393 495 . 78 . 258 89 95 . 219 314 42 759 . 45 145 . 12 18 83 69 17 170 216 229 Thermoelectric Energy+ 267 | . . . . . . . . . . . . . . . . . . . . . . . . . . . . . . . . 267 Effects 6 | . . . . . . . 1 1 . . . . . 1 . . . . . 2 . . . . . . . . . . . 1 Energy Bleed 4 | . . . . . . . 1 1 . . . . . 1 . . . . . . . . . . . . . . . . . 1 Damage (major) 2 | . . . . . . . . . . . . . . . . . . . . 2 . . . . . . . . . . . . Siege Activations . | . . . . . . . . . . . . . . . . . . . . . . . . . . . . . . . . . Martial Activations . | . . . . . . . . . . . . . . . . . . . . . . . . . . . . . . . . . Shielding Activations . | . . . . . . . . . . . . . . . . . . . . . . . . . . . . . . . . . Robots Disrupted . | . . . . . . . . . . . . . . . . . . . . . . . . . . . . . . . . . Combat Hostiles . | . . . . . . . . . . . . . . . . . . . . . . . . . . . . . . . . . Robots Corrupted 1 | . . . . . . . . . . . . . . . . . . . . . 1 . . . . . . . . . . . Combat Hostiles 1 | . . . . . . . . . . . . . . . . . . . . . 1 . . . . . . . . . . . Parts Fried 5 | . . . . . . . 3 . 2 . . . . . . . . . . . . . . . . . . . . . . . Impact Corruptions 5 | . . . . . . . . . . . . . . . . . . . . . 4 . . . . . . . . . 1 . Robots Melted 29 | . . . . . . . . . . . 1 . . 1 2 2 2 . . 1 . . . . . . . . . . 19 1 Combat Hostiles 25 | . . . . . . . . . . . 1 . . 1 2 . 2 . . 1 . . . . . . . . . . 17 1 Parts Melted 91 | . . . . . . . . . . . 3 . . 1 4 3 4 . . 2 . . . . 1 . 1 1 . . 69 2 Heat Transferred 14767 | . . . . . . . 162 100 850 . 350 . 200 950 1448 544 1430 . 740 2263 . . 650 . . . . . . . 2991 2089 Parts Sabotaged 2 | . . . . . . . . . . . . . . . . . . . . . . . . . . . . . . . . 2 Parts Stolen . | . . . . . . . . . . . . . . . . . . . . . . . . . . . . . . . . . Parts Stripped . | . . . . . . . . . . . . . . . . . . . . . . . . . . . . . . . . . Power Chain Reactions 10 | . . . . . . . 1 1 8 . . . . . . . . . . . . . . . . . . . . . . . Alert | -11 -10 -10 -10 -9 -8 -8 -8 -8 -7 -7 -7 -7 -6 -6 -6 -6 -6 -5 -5 -5 -5 -4 -4 -4 -4 -4 -4 -4 -3 -3 -3 -3 ------- Run | Yrd Mat Min Exi Min Mat Gar Mat Gar Fac Low Low Dat Pro Fac Gar Fac Gar Fac Upp Upp Zhi Pro Fac Was Fac Upp Upp War Pro Res Qua Sec Maximum Alert Level 5 | . . . . . 1 5 4 5 5 . . . . 2 5 4 5 5 . . . . 5 3 5 . . . . 4 5 5 Low Security (%) 26 | 100 100 100 . 100 83 . . . . . . . . 40 . . . . . . . . 37 . . . . . . 8 . . Level 1 6 | . . . . . 16 13 . . . . . . . 24 . . . . . . . . 18 . . . . . . 30 . . Level 2 5 | . . . . . . 10 . . . . . . . 35 8 . . . . . . . 11 49 25 . . . . 15 . . Level 3 10 | . . . . . . 17 42 6 . . . . . . 10 26 3 . . . . . 24 50 27 . . . . 16 9 . Level 4 16 | . . . . . . 18 57 30 . . . . . . 34 73 14 12 . . . . 4 . 31 . . . . 28 27 . Level 5 24 | . . . . . . 40 . 62 63 . . . . . 45 . 81 46 . . . . 3 . 5 . . . . . . 100 High Security 9 | . . . . . . . . . 36 . . . . . . . . 40 . . . . . . 10 . . . . . 62 . Max Security . | . . . . . . . . . . . . . . . . . . . . . . . . . . . . . . . . . Peak Influence 3567 | 20 127 61 . 20 349 2797 1436 3567 3498 . . . . 632 2009 1339 2895 2455 . . . . 1726 763 1952 . . . . 1492 3201 2539 Initial 1872 | . . 20 . . . 225 1363 889 1872 . . . . 173 434 1054 900 1519 . . . . 157 603 429 . . . . 198 827 1800 Average 1178 | 3 35 7 . . 127 1387 1191 2030 2143 . . . . 323 1463 1203 2180 2035 . . . . 535 694 1144 . . . . 714 2189 2192 Influence Increases 32299 | 40 445 150 . 40 1083 2722 855 2738 2092 . 205 . 305 1115 1615 489 2035 1246 115 670 5 634 2395 240 2083 572 694 1070 255 2078 2900 1413 Destroy 0b10 Robot/C 15320 | . 200 100 . 20 560 840 500 740 1100 . 80 . 280 400 780 180 920 560 100 580 . 520 1040 . 700 320 460 880 220 1040 1560 640 Destroy 0b10 Robot/NC 1045 | 40 90 15 . 20 130 5 40 20 115 . . . 5 50 . 60 . 25 15 . 5 5 110 . 45 . . 5 15 115 90 25 Destroy Leader 2226 | . 54 30 . . 176 20 128 60 170 . 20 . 20 104 30 50 70 92 . 70 . 30 260 . 148 20 20 . 20 234 258 142 Allied During Kill 1942 | . . 5 . . 8 157 6 100 4 . . . . 8 100 40 . 65 . 20 . 79 21 . 848 232 154 95 . . . . Trap Triggered on 0b10 40 | . . . . . . . . . 40 . . . . . . . . . . . . . . . . . . . . . . . Successful Hack 571 | . 40 . . . 26 14 11 28 10 . . . . 52 26 . . . . . . . 133 . 34 . . . . 72 87 38 Select Force Hacks 180 | . 30 . . . 60 . 30 . 30 . . . . . . . . . . . . . . . 30 . . . . . . . Disable Machine 2220 | . 15 . . . 105 15 45 45 390 . . . . 240 75 105 75 240 . . . . 270 . 120 . . . . 45 240 195 Anti-Garrison Action 4400 | . . . . . . 1450 . 1500 . . . . . . 450 . 700 . . . . . 150 . . . . . . . 150 . Destroy Structure 3035 | . 1 . . . 3 161 65 155 203 . . . . 111 154 54 210 174 . . . . 366 240 158 . . . . 362 440 178 Advance Influence 300 | . . . . . . . . . . . . . . 150 . . . . . . . . . . . . . . . 150 . . Lose Combat Pursuer 1020 | . 15 . . . 15 60 30 90 30 . 105 . . . . . 60 90 . . . . 45 . . . 60 90 . 60 75 195 Influence Decreases 29760 | 40 392 203 . 40 736 272 2284 539 2161 1866 903 934 267 533 226 1211 427 1726 1465 955 785 384 922 1350 744 1261 773 1408 1029 679 1170 2075 Entered New Map 17559 | . . 33 . . . 122 1434 479 1695 1295 311 934 . 15 186 955 387 1376 894 203 780 . 93 1120 184 723 241 1184 846 24 644 1401 Time Decay 10300 | 40 392 170 . 40 655 . 470 . 386 571 592 . 237 498 . 246 . 230 571 612 5 344 699 230 350 538 452 134 183 595 526 534 Lost Part 660 | . . . . . . 30 60 40 60 . . . 30 . 10 10 40 60 . 100 . . 10 . . . . 10 . 60 . 140 Lost Ally 880 | . . . . . 20 120 20 20 20 . . . . 20 30 . . 60 . 40 . 40 120 . 210 . 80 80 . . . . Purge Threat 361 | . . . . . 61 . 300 . . . . . . . . . . . . . . . . . . . . . . . . . Squads Dispatched 232 | . 4 . . . 5 . 9 . 17 . . . . 7 . 3 . 16 . 1 . 1 15 . 11 . . . . 18 105 20 Investigation 20 | . 2 . . . 3 . 2 . 1 . . . . 2 . . . . . . . 1 1 . 2 . . . . 3 1 2 Extermination 22 | . . . . . . . . . 1 . . . . 2 . 1 . . . . . . 5 . 2 . . . . 5 3 3 Reinforcement 24 | . 2 . . . 2 . 3 . . . . . . 2 . 1 . 3 . . . . 2 . 3 . . . . 2 1 3 Assault 149 | . . . . . . . 1 . 15 . . . . 1 . 1 . 10 . 1 . . 3 . 2 . . . . 5 99 11 Garrison 16 | . . . . . . . 3 . . . . . . . . . . 3 . . . . 4 . 2 . . . . 3 1 . Intercept 1 | . . . . . . . . . . . . . . . . . . . . . . . . . . . . . . . . 1 Searches Triggered . | . . . . . . . . . . . . . . . . . . . . . . . . . . . . . . . . . Data Miner Redirects 18 | . . . . . . . . . . . . . . 1 . . . . . . . . 1 . 2 . . . . 6 3 5 Construction Impeded 8 | . . . . . . . 1 . . . . . . 1 . 1 . 1 . . . . 1 . . . . . . 2 . 1 Haulers Reinforced 2 | . . . . . . . . . . . . . . . . . . 1 . . . . . . 1 . . . . . . . Active Scanning Responses . | . . . . . . . . . . . . . . . . . . . . . . . . . . . . . . . . . Cargo Convoy Interrupts 1 | . . . . . . . . . . . . . . 1 . . . . . . . . . . . . . . . . . . Stealth | -11 -10 -10 -10 -9 -8 -8 -8 -8 -7 -7 -7 -7 -6 -6 -6 -6 -6 -5 -5 -5 -5 -4 -4 -4 -4 -4 -4 -4 -3 -3 -3 -3 --------- Run | Yrd Mat Min Exi Min Mat Gar Mat Gar Fac Low Low Dat Pro Fac Gar Fac Gar Fac Upp Upp Zhi Pro Fac Was Fac Upp Upp War Pro Res Qua Sec Distress Signals 32 | . 3 1 . . 4 . 1 . . . . . . . . . . 1 . . . . 3 . 2 . . 2 . 5 4 6 Communications Jammed . | . . . . . . . . . . . . . . . . . . . . . . . . . . . . . . . . . Distress Signals . | . . . . . . . . . . . . . . . . . . . . . . . . . . . . . . . . . Times Spotted 998 | . 19 6 . 1 32 41 28 36 88 . 11 . 15 19 31 17 40 75 5 25 . 23 58 4 33 16 28 49 13 58 105 122 Peak Tracking Total 22 | . 4 3 . 1 5 4 6 8 9 . 8 . 5 3 7 3 8 22 5 5 . 5 5 3 6 6 7 12 3 8 10 18 Tactical Retreats 42 | . 1 . . . 1 3 2 4 2 . 4 . . . . . 3 5 . . . . 3 . . . 2 2 . 2 3 5 Traps | -11 -10 -10 -10 -9 -8 -8 -8 -8 -7 -7 -7 -7 -6 -6 -6 -6 -6 -5 -5 -5 -5 -4 -4 -4 -4 -4 -4 -4 -3 -3 -3 -3 ------- Run | Yrd Mat Min Exi Min Mat Gar Mat Gar Fac Low Low Dat Pro Fac Gar Fac Gar Fac Upp Upp Zhi Pro Fac Was Fac Upp Upp War Pro Res Qua Sec Traps Triggered 35 | . 3 . . . 2 7 1 10 1 . . . . . 3 1 1 1 . . . . 2 . . . . . . . 1 2 Indirectly 1 | . . . . . . 1 . . . . . . . . . . . . . . . . . . . . . . . . . . Trap Hack Attempts . | . . . . . . . . . . . . . . . . . . . . . . . . . . . . . . . . . Triggered . | . . . . . . . . . . . . . . . . . . . . . . . . . . . . . . . . . Disarmed . | . . . . . . . . . . . . . . . . . . . . . . . . . . . . . . . . . Reprogrammed 6 | . . . . . . . . . 6 . . . . . . . . . . . . . . . . . . . . . . . Reused 4 | . . . . . . . . . 4 . . . . . . . . . . . . . . . . . . . . . . . Traps Extracted . | . . . . . . . . . . . . . . . . . . . . . . . . . . . . . . . . . Installed . | . . . . . . . . . . . . . . . . . . . . . . . . . . . . . . . . . Triggered 4 | . . . . . . . . . 4 . . . . . . . . . . . . . . . . . . . . . . . Machines | -11 -10 -10 -10 -9 -8 -8 -8 -8 -7 -7 -7 -7 -6 -6 -6 -6 -6 -5 -5 -5 -5 -4 -4 -4 -4 -4 -4 -4 -3 -3 -3 -3 ---------- Run | Yrd Mat Min Exi Min Mat Gar Mat Gar Fac Low Low Dat Pro Fac Gar Fac Gar Fac Upp Upp Zhi Pro Fac Was Fac Upp Upp War Pro Res Qua Sec Machines Disabled 211 | . 1 . . . 7 14 3 13 26 . 2 . . 16 12 7 16 16 . . . . 19 . 8 6 4 1 1 3 19 17 Max in Single Turn 7 | . 1 . . . 2 2 1 1 7 . 1 . . 4 2 4 2 4 . . . . 5 . 2 2 3 1 1 1 3 2 Garrison Access 4 | . . . . . . . . . . . . . . . . . . . . . . . 2 . 1 . . . . . 1 . Garrison Relay 24 | . . . . . . 6 . 6 . . . . . . 4 . 8 . . . . . . . . . . . . . . . Phase Generator 4 | . . . . . . 1 . 1 . . . . . . 1 . 1 . . . . . . . . . . . . . . . Machines Repaired . | . . . . . . . . . . . . . . . . . . . . . . . . . . . . . . . . . Machines Dismantled . | . . . . . . . . . . . . . . . . . . . . . . . . . . . . . . . . . Machines Sabotaged . | . . . . . . . . . . . . . . . . . . . . . . . . . . . . . . . . . Overloaded Fab Kills . | . . . . . . . . . . . . . . . . . . . . . . . . . . . . . . . . . Hacking | -11 -10 -10 -10 -9 -8 -8 -8 -8 -7 -7 -7 -7 -6 -6 -6 -6 -6 -5 -5 -5 -5 -4 -4 -4 -4 -4 -4 -4 -3 -3 -3 -3 --------- Run | Yrd Mat Min Exi Min Mat Gar Mat Gar Fac Low Low Dat Pro Fac Gar Fac Gar Fac Upp Upp Zhi Pro Fac Was Fac Upp Upp War Pro Res Qua Sec Machines Accessed 133 | . 7 . 1 . 12 3 5 2 5 1 3 4 . 7 1 3 2 3 1 . 4 3 22 . 7 1 1 5 1 9 12 8 Terminals 66 | . 5 . . . 7 3 2 2 3 . . . . 3 1 2 2 3 . . . 1 9 . 2 . . . 1 4 9 7 Fabricators 6 | . . . . . . . . . . . . . . 1 . . . . . . . . 3 . 1 . . . . 1 . . Repair Stations 11 | . 1 . . . 1 . 1 . 1 . . . . . . . . . . . . 1 3 . . . . . . 2 1 . Recycling Units 9 | . 1 . . . 1 . . . . . . . . 2 . . . . . . . 1 2 . 2 . . . . . . . Scanalyzers 11 | . . . . . 2 . 1 . 1 . . . . . . . . . . . . . 2 . 1 . . . . 1 2 1 Garrison Access 9 | . . . . . 1 . 1 . . . . . . 1 . 1 . . . . . . 3 . 1 . . . . 1 . . Total Hacks 402 | . 18 . 1 . 41 8 35 5 17 1 6 26 . 15 3 6 4 6 1 . 17 8 55 . 22 6 4 16 1 22 39 19 Successful 249 | . 7 . 1 . 32 3 27 2 14 1 6 26 . 9 2 3 . 2 1 . 17 3 26 . 13 6 4 16 1 8 15 4 Failed 148 | . 10 . . . 8 5 7 3 2 . . . . 6 1 3 4 4 . . . 5 29 . 8 . . . . 14 24 15 Catastrophic 27 | . . . . . . 1 . 2 . . . . . 5 . 1 1 . . . . 1 2 . 2 . . . . 4 4 4 Database Lockouts 5 | . 1 . . . 1 . 1 . 1 . . . . . . . . . . . . . . . 1 . . . . . . . Manual 193 | . 15 . . . 25 . 7 . 5 . . . . 9 2 4 . 6 . . . 5 33 . 16 . . 1 1 18 32 14 Terminals 187 | . 15 . . . 22 8 9 5 8 . . . . 7 3 4 4 6 . . . 1 24 . 9 . . . 1 11 33 17 Fabricators 14 | . . . . . . . . . . . . . . 3 . . . . . . . . 5 . 3 . . . . 3 . . Repair Stations 27 | . 2 . . . 6 . 2 . 2 . . . . . . . . . . . . 3 7 . . . . . . 3 2 . Recycling Units 20 | . 1 . . . 3 . . . . . . . . 3 . . . . . . . 4 5 . 4 . . . . . . . Scanalyzers 55 | . . . . . 6 . 20 . 7 . . . . . . . . . . . . . 9 . 5 . . . . 2 4 2 Garrison Access 21 | . . . . . 4 . 4 . . . . . . 2 . 2 . . . . . . 5 . 1 . . . . 3 . . Terminal Hacks 107 | . 3 . 1 . 3 3 3 2 4 1 6 26 . 2 1 . . . 1 . 17 1 1 . 1 6 4 16 1 . 3 1 Record 44 | . . . 1 . . . . . . . 5 11 . . . . . . . . 5 . . . . 6 4 10 1 . 1 . Part Schematic 13 | . . . . . . . . . . . . 9 . . . . . . . . 4 . . . . . . . . . . . Robot Schematic 3 | . . . . . . . . . . . . 3 . . . . . . . . . . . . . . . . . . . . Robot Analysis 7 | . 2 . . . . . . . . . . . . 1 . . . . . . 4 . . . . . . . . . . . Prototype ID Bank 18 | . 1 . . . 2 . 1 . . . . 3 . 1 . . . . . . 4 . . . . . . 5 . . 1 . Open Door 9 | . . . . . . 2 . . . 1 1 . . . . . . . 1 . . 1 . . . . . 1 . . 1 1 Emergency Access Points 3 | . . . . . . 1 . 1 . . . . . . 1 . . . . . . . . . . . . . . . . . Terminal Index 3 | . . . . . . . . . 1 . . . . . . . . . . . . . 1 . 1 . . . . . . . Unreport Threat 3 | . . . . . 1 . 2 . . . . . . . . . . . . . . . . . . . . . . . . . Locate Traps 1 | . . . . . . . . . 1 . . . . . . . . . . . . . . . . . . . . . . . Reprogram Traps 2 | . . . . . . . . . 2 . . . . . . . . . . . . . . . . . . . . . . . Patrol Navigation 1 | . . . . . . . . 1 . . . . . . . . . . . . . . . . . . . . . . . . Fabricator Hacks 4 | . . . . . . . . . . . . . . 3 . . . . . . . . . . 1 . . . . . . . Load Schematic 3 | . . . . . . . . . . . . . . 2 . . . . . . . . . . 1 . . . . . . . Build 1 | . . . . . . . . . . . . . . 1 . . . . . . . . . . . . . . . . . . Repair Station Hacks 14 | . 2 . . . 6 . 2 . 2 . . . . . . . . . . . . . 2 . . . . . . . . . Scan Component 8 | . 1 . . . 3 . 1 . 1 . . . . . . . . . . . . . 2 . . . . . . . . . Repair 6 | . 1 . . . 3 . 1 . 1 . . . . . . . . . . . . . . . . . . . . . . . Recycling Unit Hacks 1 | . . . . . 1 . . . . . . . . . . . . . . . . . . . . . . . . . . . Retrieve Components 1 | . . . . . 1 . . . . . . . . . . . . . . . . . . . . . . . . . . . Scanalyzer 33 | . . . . . 3 . 15 . 5 . . . . . . . . . . . . . 6 . 2 . . . . 1 1 . Insert Component 8 | . . . . . 1 . 6 . 1 . . . . . . . . . . . . . . . . . . . . . . . Analyze 10 | . . . . . 1 . 8 . 1 . . . . . . . . . . . . . . . . . . . . . . . Retrieve Study 15 | . . . . . 1 . 1 . 3 . . . . . . . . . . . . . 6 . 2 . . . . 1 1 . Garrison Access Hacks 6 | . . . . . 1 . 1 . . . . . . 1 . 1 . . . . . . 1 . 1 . . . . . . . Unlock Access 4 | . . . . . 1 . 1 . . . . . . 1 . 1 . . . . . . . . . . . . . . . . Seal Access 2 | . . . . . . . . . . . . . . . . . . . . . . . 1 . 1 . . . . . . . Unauthorized Hacks 84 | . 2 . . . 18 . 6 . 3 . . . . 3 1 2 . 2 . . . 2 16 . 8 . . . . 7 11 3 Terminals 55 | . 1 . . . 13 . 4 . 2 . . . . 1 1 2 . 2 . . . . 9 . 4 . . . . 3 10 3 Track 3 | . . . . . 1 . . . . . . . . . 1 . . . . . . . . . . . . . . . 1 . Botnet 15 | . 1 . . . 4 . 2 . . . . . . 1 . 1 . . . . . . 1 . 2 . . . . . 3 . Disrupt 3 | . . . . . 3 . . . . . . . . . . . . . . . . . . . . . . . . . . . Operators 1 | . . . . . . . . . . . . . . . . . . 1 . . . . . . . . . . . . . . Skim 33 | . . . . . 5 . 2 . 2 . . . . . . 1 . 1 . . . . 8 . 2 . . . . 3 6 3 Fabricators 5 | . . . . . . . . . . . . . . . . . . . . . . . 2 . 1 . . . . 2 . . Liberate 4 | . . . . . . . . . . . . . . . . . . . . . . . 2 . 1 . . . . 1 . . Haulers 1 | . . . . . . . . . . . . . . . . . . . . . . . . . . . . . . 1 . . Repair Stations 5 | . . . . . . . . . . . . . . . . . . . . . . 1 1 . . . . . . 2 1 . Mechanics 1 | . . . . . . . . . . . . . . . . . . . . . . . 1 . . . . . . . . . Patch 4 | . . . . . . . . . . . . . . . . . . . . . . 1 . . . . . . . 2 1 . Recycling Units 10 | . 1 . . . 1 . . . . . . . . 1 . . . . . . . 1 4 . 2 . . . . . . . Reject 3 | . . . . . . . . . . . . . . . . . . . . . . . 2 . 1 . . . . . . . Recyclers 5 | . . . . . . . . . . . . . . 1 . . . . . . . 1 2 . 1 . . . . . . . Tunnel 2 | . 1 . . . 1 . . . . . . . . . . . . . . . . . . . . . . . . . . . Scanalyzers 4 | . . . . . 1 . 1 . 1 . . . . . . . . . . . . . . . 1 . . . . . . . Extract 4 | . . . . . 1 . 1 . 1 . . . . . . . . . . . . . . . 1 . . . . . . . Garrison Access 5 | . . . . . 3 . 1 . . . . . . 1 . . . . . . . . . . . . . . . . . . Reprogram 1 | . . . . . 1 . . . . . . . . . . . . . . . . . . . . . . . . . . . Intercept 3 | . . . . . 1 . 1 . . . . . . 1 . . . . . . . . . . . . . . . . . . Watchers 1 | . . . . . 1 . . . . . . . . . . . . . . . . . . . . . . . . . . . Data Cores Recovered 5 | . . . . . . . . . 1 . . . . 1 . . . 2 . . . . . . . . . . . . . 1 Used 4 | . . . . . . . . . . . . . . 1 . . . 2 . . . . . . . . . . . . . 1 Hacking Detections 99 | . 6 . . . 10 2 5 2 5 . . . . 7 1 3 2 3 . . . 2 21 . 6 . . . . 7 10 7 Full Trace Events 9 | . . . . . . . . 2 . . . . . 2 . . 1 . . . . . 1 . 1 . . . . 1 . 1 Feedback Events 1 | . . . . . . . . . . . . . . . . . . . . . . . . . . . . . . 1 . . Corruption 1 | . . . . . . . . . . . . . . . . . . . . . . . . . . . . . . 1 . . Feedback Blocked . | . . . . . . . . . . . . . . . . . . . . . . . . . . . . . . . . . Robot Schematics Acquired 3 | . . . . . . . . . . . . 3 . . . . . . . . . . . . . . . . . . . . Robots Built . | . . . . . . . . . . . . . . . . . . . . . . . . . . . . . . . . . Authchips . | . . . . . . . . . . . . . . . . . . . . . . . . . . . . . . . . . Time . | . . . . . . . . . . . . . . . . . . . . . . . . . . . . . . . . . Total Robot Build Rating . | . . . . . . . . . . . . . . . . . . . . . . . . . . . . . . . . . Part Schematics Acquired 33 | . . . . . 6 . 9 . 3 . . 9 . . . . . . . . 4 . . . 2 . . . . . . . Parts Built 1 | . . . . . . . . . . . . . . 1 . . . . . . . . . . . . . . . . . . Authchips . | . . . . . . . . . . . . . . . . . . . . . . . . . . . . . . . . . Time 169 | . . . . . . . . . . . . . . 169 . . . . . . . . . . . . . . . . . . Total Part Build Rating 6 | . . . . . . . . . . . . . . 6 . . . . . . . . . . . . . . . . . . Part Studies Acquired 15 | . . . . . 1 . 1 . 3 . . . . . . . . . . . . . 6 . 2 . . . . 1 1 . Parts Repaired 6 | . 1 . . . 3 . 1 . 1 . . . . . . . . . . . . . . . . . . . . . . . Time 228 | . 26 . . . 136 . 44 . 22 . . . . . . . . . . . . . . . . . . . . . . . Parts Recycled . | . . . . . . . . . . . . . . . . . . . . . . . . . . . . . . . . . Recycled Matter . | . . . . . . . . . . . . . . . . . . . . . . . . . . . . . . . . . Retrieved Matter . | . . . . . . . . . . . . . . . . . . . . . . . . . . . . . . . . . Retrieved Components 6 | . . . . . 6 . . . . . . . . . . . . . . . . . . . . . . . . . . . Parts Scanalyzed 8 | . . . . . 1 . 6 . 1 . . . . . . . . . . . . . . . . . . . . . . . Part Schematics Acquired 8 | . . . . . 1 . 6 . 1 . . . . . . . . . . . . . . . . . . . . . . . Parts Damaged 1 | . . . . . . . 1 . . . . . . . . . . . . . . . . . . . . . . . . . Bothacking | -11 -10 -10 -10 -9 -8 -8 -8 -8 -7 -7 -7 -7 -6 -6 -6 -6 -6 -5 -5 -5 -5 -4 -4 -4 -4 -4 -4 -4 -3 -3 -3 -3 ------------ Run | Yrd Mat Min Exi Min Mat Gar Mat Gar Fac Low Low Dat Pro Fac Gar Fac Gar Fac Upp Upp Zhi Pro Fac Was Fac Upp Upp War Pro Res Qua Sec Used RIF Installer . | . . . . . . . . . . . . . . . . . . . . . . . . . . . . . . . . . Robots Hacked 1 | . . . . . . 1 . . . . . . . . . . . . . . . . . . . . . . . . . . Non-combat . | . . . . . . . . . . . . . . . . . . . . . . . . . . . . . . . . . Combat 1 | . . . . . . 1 . . . . . . . . . . . . . . . . . . . . . . . . . . Robot Hacks Applied 1 | . . . . . . 1 . . . . . . . . . . . . . . . . . . . . . . . . . . parse_system 1 | . . . . . . 1 . . . . . . . . . . . . . . . . . . . . . . . . . . Relay Couplers Released 101 | . . . . . . 23 . 21 . . . . . . 15 . 32 . . . . . 1 . . . . . . 7 2 . Machine Destruction 94 | . . . . . . 23 . 21 . . . . . . 15 . 32 . . . . . 1 . . . . . . . 2 . Programmers 7 | . . . . . . . . . . . . . . . . . . . . . . . . . . . . . . 7 . . Fabnet Peak Effective % . | . . . . . . . . . . . . . . . . . . . . . . . . . . . . . . . . . Robots Rewired 25 | . . . . . . 3 . 4 1 . . . . 2 2 . 2 . . 1 . 5 . . . . . 5 . . . . Allies Hacked 4 | . . . . . . 1 . 1 . . . . . . . . . . . . . . . . 2 . . . . . . . Hacks Repelled . | . . . . . . . . . . . . . . . . . . . . . . . . . . . . . . . . . Allies | -11 -10 -10 -10 -9 -8 -8 -8 -8 -7 -7 -7 -7 -6 -6 -6 -6 -6 -5 -5 -5 -5 -4 -4 -4 -4 -4 -4 -4 -3 -3 -3 -3 -------- Run | Yrd Mat Min Exi Min Mat Gar Mat Gar Fac Low Low Dat Pro Fac Gar Fac Gar Fac Upp Upp Zhi Pro Fac Was Fac Upp Upp War Pro Res Qua Sec Total Allies 63 | . . 3 . . 3 7 . 4 1 . . . . 2 4 . 2 . . 1 . 7 4 20 . . . 5 . . . . Largest Group 20 | . . 2 2 . 3 5 1 4 1 . . . . 2 3 2 2 2 . 1 . 5 2 20 20 7 6 5 . . . . Highest-Rated Group 730 | . . 45 45 . 48 257 21 84 32 . . . . 74 175 175 170 170 . 30 . 187 144 730 730 308 252 279 . . . . Highest-Rated Ally 178 | . . 31 31 . 16 178 21 21 32 . . . . 40 95 95 85 85 . 30 . 99 95 50 50 50 46 64 . . . . Initial Warlord ECA Mod 46 | . . . . . . . 13 13 26 26 26 26 25 25 25 34 34 46 45 45 45 44 44 44 44 44 44 44 43 43 43 43 Warlord Squad Rendezvous 1 | . . . . . . . . . . . . . . . . . . 1 . . . . . . . . . . . . . . Geek 1 | . . . . . . . . . . . . . . . . . . 1 . . . . . . . . . . . . . . Total Orders 23 | . . . . . . . . . . . . . . 2 . . 1 6 3 3 . 4 . . . . . 4 . . . . STAY 4 | . . . . . . . . . . . . . . . . . 1 . . . . . . . . . . 3 . . . . FOLLOW 2 | . . . . . . . . . . . . . . . . . . . 1 . . . . . . . . 1 . . . . EXPLORE 9 | . . . . . . . . . . . . . . . . . . 3 1 3 . 2 . . . . . . . . . . RETURN 8 | . . . . . . . . . . . . . . 2 . . . 3 1 . . 2 . . . . . . . . . . Ally Attacks 588 | . . 1 . . 11 41 11 47 9 . . . . 5 24 18 . 59 . 6 . 24 22 12 186 25 50 37 . . . . Total Damage 15853 | . . 21 . . 73 1289 215 824 231 . . . . 247 716 628 . 1565 . 121 . 1663 1125 349 3950 704 1125 1007 . . . . Kills 123 | . . 1 . . 1 12 3 8 3 . . . . . 7 6 . 13 . 2 . 13 5 . 27 10 5 7 . . . . Allies Corrupted 1 | . . . . . . . . . . . . . . . . . . . . . . . . . . . . 1 . . . . Allies Melted 3 | . . . . . . . . . . . . . . . . . . . . 1 . . 1 . . . . 1 . . . . Intel | -11 -10 -10 -10 -9 -8 -8 -8 -8 -7 -7 -7 -7 -6 -6 -6 -6 -6 -5 -5 -5 -5 -4 -4 -4 -4 -4 -4 -4 -3 -3 -3 -3 ------- Run | Yrd Mat Min Exi Min Mat Gar Mat Gar Fac Low Low Dat Pro Fac Gar Fac Gar Fac Upp Upp Zhi Pro Fac Was Fac Upp Upp War Pro Res Qua Sec Active Infowar (turns) 4464 | 83 228 . . . 37 . . . . . . . . 937 . . . . . . . . 1448 497 682 . . . . 552 . . Optics 937 | . . . . . . . . . . . . . . 937 . . . . . . . . . . . . . . . . . . Terrain 348 | 83 228 . . . 37 . . . . . . . . . . . . . . . . . . . . . . . . . . . Traps 3179 | . . . . . . . . . . . . . . . . . . . . . . . 1448 497 682 . . . . 552 . . Cloaking 2 | . . . . . . . . . . . . . . . . . . . . . . . 2 . . . . . . . . . Jamming 326 | . . . . . . . . . . . . . . . . . . . . . . . . . . . . . . 326 . . Robot Analysis Total 7 | . 2 . . . . . . . . . . . . 1 . . . . . . 4 . . . . . . . . . . . Derelict Logs Recovered 16 | . . 2 . 2 . . . . . 2 1 . 2 . . . . . 1 1 . 2 . . . 2 1 . . . . . Drone Launches 14 | . . . . . . . . . . . . . . 2 . . . 5 1 2 . 4 . . . . . . . . . . Drone Recoveries 10 | . . . . . . . . . . . . . . 2 . . . 3 . 1 . 4 . . . . . . . . . . Exploration | -11 -10 -10 -10 -9 -8 -8 -8 -8 -7 -7 -7 -7 -6 -6 -6 -6 -6 -5 -5 -5 -5 -4 -4 -4 -4 -4 -4 -4 -3 -3 -3 -3 ------------- Run | Yrd Mat Min Exi Min Mat Gar Mat Gar Fac Low Low Dat Pro Fac Gar Fac Gar Fac Upp Upp Zhi Pro Fac Was Fac Upp Upp War Pro Res Qua Sec Turns Passed 52551 | 178 2008 1319 751 1527 3225 3223 1199 3180 1425 1739 1870 137 1522 1336 2037 528 1819 827 1725 2006 363 1904 2970 497 872 1537 1139 1592 750 1884 3957 1505 Spaces Moved 29611 | 85 899 512 308 623 1154 1177 397 1138 650 1065 1100 85 900 719 1122 328 1156 474 809 1054 237 1105 2098 388 678 1271 928 1164 650 1221 3102 1014 Core 8 | 7 . . . . . . . . . . . . . . 1 . . . . . . . . . . . . . . . . . Treads 11755 | 78 899 512 308 623 1154 1177 397 1138 650 1065 1100 85 900 719 950 . . . . . . . . . . . . . . . . . Legs 17797 | . . . . . . . . . . . . . . . 171 328 1156 474 809 1054 237 1105 2098 388 678 1271 928 1164 650 1221 3102 963 Wheels . | . . . . . . . . . . . . . . . . . . . . . . . . . . . . . . . . . Hover . | . . . . . . . . . . . . . . . . . . . . . . . . . . . . . . . . . Flight . | . . . . . . . . . . . . . . . . . . . . . . . . . . . . . . . . . Fastest Speed 50 | 50 160 240 240 240 240 245 240 240 160 162 162 162 158 159 130 130 130 130 140 140 140 130 111 111 111 110 110 102 102 101 101 103 Average Speed 152 | 150 190 240 240 240 241 245 244 243 161 162 162 162 159 159 156 130 130 130 203 168 140 135 112 111 111 110 110 104 102 104 102 116 Slowest Speed 1700 | 160 240 240 240 240 400 245 245 245 162 162 162 162 162 159 1700 130 270 250 250 250 140 250 130 235 111 111 110 110 102 191 108 176 Overloaded Moves . | . . . . . . . . . . . . . . . . . . . . . . . . . . . . . . . . . Propulsion Burnouts . | . . . . . . . . . . . . . . . . . . . . . . . . . . . . . . . . . Robots Hopped . | . . . . . . . . . . . . . . . . . . . . . . . . . . . . . . . . . Potential Cave-ins . | . . . . . . . . . . . . . . . . . . . . . . . . . . . . . . . . . Cave-ins Triggered . | . . . . . . . . . . . . . . . . . . . . . . . . . . . . . . . . . Teleports 30 | . . . . . . . . . . . . . . . . . . . . . . . . . . . . . . . . 30 Spacefolds 17 | . . . . . . . . . . . . . . . . . . . . . . . . . . . . . . . . 17 Exploration Rate (%) 71 | 4 97 97 59 99 76 98 37 99 24 99 97 70 94 19 92 12 97 13 99 98 61 96 49 95 21 96 93 89 86 30 94 63 Regions Visited 32 Branch Regions 17 Pre-discovered Areas 20 | . 1 1 1 2 1 . . . . 3 . 1 1 . . . . . 1 1 3 1 . . . 1 2 . . . . . Known Exits Taken 11 | . . . . . 1 . 1 . 1 . . . 1 1 . 1 . 1 . . . 1 . . . 1 . . 1 1 . . Unknown Exits Taken 15 | 1 1 1 1 1 . . . . . 1 1 1 . . . . . . 1 1 1 . . . 1 . 1 1 . . 1 . Scrap Searched 33 | . . 1 . 2 . . . . . 5 10 . 5 . . . . . 1 3 . 1 . . . 2 2 . 1 . . . Spaces Dug 44 | . . . . . . . . 1 . . 3 . . . . . 1 4 2 2 . . 2 . . 1 17 . . 3 4 4 Terrain Destroyed 3424 | . . . . . 2 250 77 176 258 . 16 . 79 114 115 56 278 71 50 257 . 15 193 196 22 330 88 109 79 185 319 89 Melee 2 | . . . . . . . . . . . . . . . . . . . . 2 . . . . . . . . . . . . Projectile 512 | . . . . . 2 5 17 3 18 . 9 . 10 20 10 21 21 26 3 6 . 14 77 2 22 11 69 7 8 35 53 43 AOE 2904 | . . . . . . 245 60 173 240 . 7 . 69 94 105 35 257 45 47 249 . . 116 194 . 319 19 102 71 145 266 46 Terrain Rammed . | . . . . . . . . . . . . . . . . . . . . . . . . . . . . . . . . . Walls Destroyed . | . . . . . . . . . . . . . . . . . . . . . . . . . . . . . . . . . Machines Disabled . | . . . . . . . . . . . . . . . . . . . . . . . . . . . . . . . . . Actions | -11 -10 -10 -10 -9 -8 -8 -8 -8 -7 -7 -7 -7 -6 -6 -6 -6 -6 -5 -5 -5 -5 -4 -4 -4 -4 -4 -4 -4 -3 -3 -3 -3 --------- Run | Yrd Mat Min Exi Min Mat Gar Mat Gar Fac Low Low Dat Pro Fac Gar Fac Gar Fac Upp Upp Zhi Pro Fac Was Fac Upp Upp War Pro Res Qua Sec Total 34140 | 110 1045 582 326 651 1461 1412 519 1348 843 1079 1143 84 940 825 1291 371 1328 574 852 1183 258 1465 2448 421 737 1353 968 1420 686 1525 3679 1213 Wait 1337 | 1 33 57 . . 140 67 32 14 37 . 4 . 6 4 5 2 38 5 2 19 . 205 131 1 9 42 . 59 6 42 339 37 Move 29545 | 84 898 511 307 622 1153 1176 396 1137 649 1064 1099 84 899 718 1120 327 1155 473 808 1053 236 1104 2098 387 677 1270 927 1163 649 1220 3101 980 Hop . | . . . . . . . . . . . . . . . . . . . . . . . . . . . . . . . . . Pick Up 267 | 2 19 2 8 9 24 11 9 8 19 3 1 . 3 7 7 2 5 12 2 6 3 18 16 1 3 3 . 13 1 21 13 16 Fast Attach 148 | 8 1 . . . 6 1 5 1 4 . 2 . . 2 12 2 6 6 4 8 4 8 6 3 . 2 . 7 . 13 20 17 Attach 115 | . . . 2 . 5 7 5 5 9 1 . . 3 4 2 1 2 5 4 9 . 7 4 . . 1 . 7 1 8 4 19 Detach 50 | 1 . . 2 . 3 1 1 . 3 1 1 . . 3 1 . 2 1 3 5 1 4 2 1 . . . 3 . 3 6 2 Swap 523 | 1 7 . 1 4 19 24 14 30 25 6 11 . 8 20 26 7 22 14 1 10 4 12 62 11 13 7 6 13 7 62 34 42 Drop 345 | 1 9 1 6 10 29 13 12 9 14 4 1 . 1 8 30 4 13 12 1 3 4 23 27 5 8 3 3 17 2 34 26 12 Fire 1471 | 12 78 11 . 6 82 70 44 98 76 . 24 . 20 36 59 26 70 43 27 51 . 27 101 12 25 25 32 50 20 122 136 88 Melee 13 | . . . . . . . . . . . . . . . . . . . . 5 6 1 1 . . . . . . . . . Ram . | . . . . . . . . . . . . . . . . . . . . . . . . . . . . . . . . . Kick 4 | . . . . . . . . . . . . . . . . . . 3 . . . . . . 1 . . . . . . . Crush 3 | . . . . . . . 1 . . . . . . 1 1 . . . . . . . . . . . . . . . . . Escape Stasis 24 | . . . . . . 6 . 18 . . . . . . . . . . . . . . . . . . . . . . . . Rewire 295 | . . . . . . 36 . 28 7 . . . . 22 28 . 15 . . 14 . 56 . . 1 . . 88 . . . . Trap . | . . . . . . . . . . . . . . . . . . . . . . . . . . . . . . . . . Miscellaneous . | . . . . . . . . . . . . . . . . . . . . . . . . . . . . . . . . . Route ------- -11/Scrapyard -10/Materials (discovered 6 exits: [*Mat x3] / [*Min x2] / [*Sub]) -10/Mines (discovered 4 exits: [*Mat x2] / *Exi / [*Sub]) -10/Exiles -9/Mines (discovered 2 exits: *Mat x2) -8/Materials (discovered 4 exits: *Fac x3 / Gar) -8/Garrison (discovered 3 exits: *Mat x3) -8/Materials (discovered 2 exits: *Fac / Gar) -8/Garrison (discovered 3 exits: *Fac x3) -7/Factory (discovered 4 exits: Fac / *Sto / *Low x2) -7/Lower Caves -7/Lower Caves (discovered 2 exits: *Fac / *Dat) -7/Data Miner -6/Proximity Caves -6/Factory (discovered 2 exits: *Fac / Gar) -6/Garrison (discovered 3 exits: *Fac x3) -6/Factory -6/Garrison (discovered 3 exits: *Fac x3) -5/Factory (discovered 2 exits: *Fac / *Upp) -5/Upper Caves -5/Upper Caves (discovered 2 exits: *Fac / *Zhi) -5/Zhirov -4/Proximity Caves -4/Factory (discovered 5 exits: *Res x4 / *Upp) -4/Waste -4/Factory (discovered 4 exits: *Res x3 / *Upp) -4/Upper Caves -4/Upper Caves (discovered 2 exits: *Res / *War) -4/Warlord -3/Proximity Caves -3/Research (discovered 4 exits: Res x2 / *Qua x2) -3/Quarantine (discovered 3 exits: *Res / *Sec / [*Frg]) -3/Section 7 (discovered 1 exit: *Res) History --------- Turn | Location | Event 32 | -11/Scrapyard | Discovered new exit (range 15) 179 | -11/Scrapyard | Entered Materials 313 | -10/Materials | Build established: Mutant 392 | -10/Materials | Discovered new exit (range 16) 646 | -10/Materials | Discovered new exit (range 9) 810 | -10/Materials | Discovered new exit (range 15) 906 | -10/Materials | Discovered new exit (range 13) 1243 | -10/Materials | Central database locked down 1910 | -10/Materials | Discovered new exit (range 5) 1951 | -10/Materials | Discovered new exit (range 12) 2080 | -10/Materials | Repaired Assault Rifle 2187 | -10/Materials | Entered Mines 2355 | -10/Mines | Discovered new exit (range 8) 2473 | -10/Mines | Assembled infested the area 2478 | -10/Mines | Assisted by a Guerilla fighting off Assembled 2685 | -10/Mines | Received a Mining Laser from a helpful Derelict 2725 | -10/Mines | Discovered new exit (range 10) 3033 | -10/Mines | Discovered new exit (range 6) 3067 | -10/Mines | Learned Materials stockpile data 3331 | -10/Mines | Learned location of Zion (-6) 3396 | -10/Mines | Deemed a non-threat by the Exiles lab entrance 3398 | -10/Mines | Discovered new exit (range 5) 3506 | -10/Mines | Entered Exiles 3506 | -10/Exiles | Accompanied by 2 allies 3536 | -10/Exiles | Led the pair of lost Derelicts to a safe place 3570 | -10/Exiles | Met 8R-AWN 3604 | -10/Exiles | Met EX-HEX 3748 | -10/Exiles | Met EX-DEC 4090 | -10/Exiles | Met EX-BIN 4228 | -10/Exiles | Discovered new exit (range 14) 4257 | -10/Exiles | Entered Mines 4292 | -9/Mines | Met a Derelict bent on vengeance 4438 | -9/Mines | Discovered new exit (range 9) 4759 | -9/Mines | Joined a pair of Derelicts in attacking an 0b10 outpost 5147 | -9/Mines | Discovered new exit (range 10) 5158 | -9/Mines | Learned location of Storage (-7) 5481 | -9/Mines | Learned Materials security intel 5784 | -9/Mines | Entered Materials 5784 | -8/Materials | Evolved 4 slots: Utility x2, Weapon x2 5838 | -8/Materials | Central database locked down 6219 | -8/Materials | Build established: Scavenger-Gunner 6761 | -8/Materials | Repaired Gauss Rifle 6822 | -8/Materials | Repaired Enh. Autogun 6856 | -8/Materials | Repaired Hvy. Assault Rifle+ 6962 | -8/Materials | Discovered new exit (range 14) 7711 | -8/Materials | Identified exit to Factory 7775 | -8/Materials | Learned location of 3 exits from Factory 7799 | -8/Materials | Learned Factory emergency access door positions 7817 | -8/Materials | Learned Storage stockpile data 7820 | -8/Materials | Identified exit to Garrison 9009 | -8/Materials | Entered Garrison 9009 | -8/Garrison | Accompanied by 2 allies 9067 | -8/Garrison | Triggered checkpoint 9095 | -8/Garrison | Garrison Relay disabled 9418 | -8/Garrison | Phase Generator disabled 9653 | -8/Garrison | Triggered checkpoint 9721 | -8/Garrison | Triggered checkpoint 9988 | -8/Garrison | Triggered checkpoint 10003 | -8/Garrison | Discovered new exit (range 11) 10039 | -8/Garrison | Triggered checkpoint 10073 | -8/Garrison | Garrison Relay disabled 10122 | -8/Garrison | Rescued a captive Derelict 10124 | -8/Garrison | Rescued a captive Derelict 10201 | -8/Garrison | Rescued AZ-K3N 10429 | -8/Garrison | Triggered checkpoint 10465 | -8/Garrison | Garrison Relay disabled 10537 | -8/Garrison | Triggered checkpoint 10696 | -8/Garrison | Triggered checkpoint 10761 | -8/Garrison | Garrison Relay disabled 10857 | -8/Garrison | Discovered new exit (range 13) 11256 | -8/Garrison | Spotted B-75 Beast 11271 | -8/Garrison | Destroyed B-75 Beast 11325 | -8/Garrison | Garrison Relay disabled 11575 | -8/Garrison | Discovered new exit (range 13) 11627 | -8/Garrison | Triggered checkpoint 11708 | -8/Garrison | Garrison Relay disabled 11738 | -8/Garrison | AZ-K3N assimilated hostile H-55 Commando 12232 | -8/Garrison | Entered Materials 12232 | -8/Materials | Accompanied by 1 ally 12542 | -8/Materials | Met 7R-MNS 12644 | -8/Materials | Central database locked down 12822 | -8/Materials | Garrison activated, responded to threat 12899 | -8/Materials | Core integrity fell below 50% 13000 | -8/Materials | Lost 3 parts (1n1u1w) 13032 | -8/Materials | First assault squad dispatched 13094 | -8/Materials | Destroyed 8 combat bots 13236 | -8/Materials | Discovered exit to Factory (range 8) 13256 | -8/Materials | Identified exit to Garrison 13370 | -8/Materials | Repaired Gauss Rifle 13431 | -8/Materials | Entered Garrison 13471 | -8/Garrison | Triggered checkpoint 13551 | -8/Garrison | Triggered checkpoint 13606 | -8/Garrison | Garrison Relay disabled 14253 | -8/Garrison | Triggered checkpoint 14327 | -8/Garrison | Garrison Relay disabled 14399 | -8/Garrison | Phase Generator disabled 14889 | -8/Garrison | Triggered checkpoint 15033 | -8/Garrison | Discovered exit to Factory (range 14) 15084 | -8/Garrison | Triggered checkpoint 15140 | -8/Garrison | Garrison Relay disabled 15343 | -8/Garrison | P-60 Hacker assimilated allied Commando 3a 15691 | -8/Garrison | Triggered checkpoint 15757 | -8/Garrison | Triggered checkpoint 15918 | -8/Garrison | Discovered exit to Factory (range 9) 16018 | -8/Garrison | Garrison Relay disabled 16248 | -8/Garrison | Garrison Relay disabled 16257 | -8/Garrison | Triggered checkpoint 16326 | -8/Garrison | Discovered exit to Factory (range 15) 16369 | -8/Garrison | Garrison Relay disabled 16611 | -8/Garrison | Entered Factory 16611 | -7/Factory | Accompanied by 1 ally 16611 | -7/Factory | Evolved 2 slots: Propulsion x2 16612 | -7/Factory | Identified exit to Lower Caves 16613 | -7/Factory | Identified exit to Factory 16613 | -7/Factory | Identified exit to Storage 17114 | -7/Factory | Repaired Med. Reflective Plating 17313 | -7/Factory | Central database locked down 17340 | -7/Factory | P-60 Hacker assimilated allied Guardian 4a 17411 | -7/Factory | First assault squad dispatched 17412 | -7/Factory | Destroyed 7 combat bots 17433 | -7/Factory | Found Prototype Launcher 17433 | -7/Factory | Identified Rocket Array 17517 | -7/Factory | High security lockdown imminent 17581 | -7/Factory | Build established: Hacker-Gunner 17597 | -7/Factory | High security lockdown engaged 17898 | -7/Factory | Build established: Gunner 17967 | -7/Factory | Destroyed 34 combat bots 18036 | -7/Factory | Entered Lower Caves 18042 | -7/Lower Caves | Met a Warlord Commander 18043 | -7/Lower Caves | Learned location of Warlord (-4) 18044 | -7/Lower Caves | Warlord Commander delivered Encrypted Comm Array 18047 | -7/Lower Caves | Found Encrypted Comm Array 18260 | -7/Lower Caves | Found Prototype Device 18639 | -7/Lower Caves | Encountered a Warlord checkpoint 19166 | -7/Lower Caves | Discovered new exit (range 16) 19775 | -7/Lower Caves | Entered another Lower Caves area 19993 | -7/Lower Caves | Found Alien Artifact 19993 | -7/Lower Caves | Identified Dimensional Node Initializer 19993 | -7/Lower Caves | Initialized slip node 20146 | -7/Lower Caves | Discovered exit to Factory (range 8) 20335 | -7/Lower Caves | Learned Research emergency access door positions 20801 | -7/Lower Caves | Learned Factory garrison access intel 20877 | -7/Lower Caves | Attacked by a delusional Derelict stockpiling parts 21018 | -7/Lower Caves | Discovered new exit (range 7) 21645 | -7/Lower Caves | Entered Data Miner 21645 | -7/Data Miner | Discovered new exit (range 6) 21676 | -7/Data Miner | Met Data Miner 21715 | -7/Data Miner | Learned location of Section 7 (-3) 21715 | -7/Data Miner | Acquired the access code to Warlord's prototype stash 21743 | -7/Data Miner | Received God Mode back door access code from Data Miner 21782 | -7/Data Miner | Entered Proximity Caves 22131 | -6/Proximity Caves | Attracted the attention of an 0b10 checkpoint 22182 | -6/Proximity Caves | Spotter reported a threat 22280 | -6/Proximity Caves | Learned 4 Factory zone layouts 22934 | -6/Proximity Caves | Learned location of Extension (-5) 22941 | -6/Proximity Caves | Spotted B-75 Beast 23081 | -6/Proximity Caves | Discovered exit to Factory (range 8) 23304 | -6/Proximity Caves | Entered Factory 23304 | -6/Factory | Evolved 2 slots: Propulsion x1, Utility x1 23306 | -6/Factory | Loaded intel: 4 garrison access locations 23505 | -6/Factory | Watched by a mysterious "MATRIX" hacker 24172 | -6/Factory | Fabricated Combat Drone Bay (x1) 24304 | -6/Factory | Discovered new exit (range 4) 24344 | -6/Factory | Identified exit to Garrison 24354 | -6/Factory | First assault squad dispatched 24384 | -6/Factory | Incoming assault squad redirected 24456 | -6/Factory | Cargo convoy interrupted 24517 | -6/Factory | Lost 3 allies 24640 | -6/Factory | Entered Garrison 24640 | -6/Garrison | Accompanied by 1 ally 24754 | -6/Garrison | Triggered checkpoint 24781 | -6/Garrison | Garrison Relay disabled 24817 | -6/Garrison | Triggered checkpoint 24822 | -6/Garrison | Triggered checkpoint 24852 | -6/Garrison | Destroyed 10 combat bots 24918 | -6/Garrison | Triggered checkpoint 24961 | -6/Garrison | Build established: Scavenger-Gunner 24978 | -6/Garrison | Triggered checkpoint 24993 | -6/Garrison | Garrison Relay disabled 25175 | -6/Garrison | Discovered new exit (range 10) 25255 | -6/Garrison | Triggered checkpoint 25301 | -6/Garrison | Triggered checkpoint 25401 | -6/Garrison | Triggered checkpoint 25429 | -6/Garrison | Garrison Relay disabled 25658 | -6/Garrison | Discovered new exit (range 10) 25972 | -6/Garrison | Phase Generator disabled 26017 | -6/Garrison | Discovered new exit (range 10) 26028 | -6/Garrison | Triggered checkpoint 26063 | -6/Garrison | Garrison Relay disabled 26065 | -6/Garrison | Build established: Tank 26304 | -6/Garrison | Found embedded Infiltrators 26584 | -6/Garrison | Attempted to access garrison exit controls, blocked by remote lockdown 26677 | -6/Garrison | Entered Factory 26677 | -6/Factory | Accompanied by 2 allies 26758 | -6/Factory | Build established: Gunner 27027 | -6/Factory | First assault squad dispatched 27198 | -6/Factory | Identified exit to Garrison 27205 | -6/Factory | Entered Garrison 27211 | -6/Garrison | Spotted B-90 Cyclops 27216 | -6/Garrison | Spotted B-86 Titan 27296 | -6/Garrison | Destroyed 7 combat bots 27357 | -6/Garrison | Triggered checkpoint 27506 | -6/Garrison | Triggered checkpoint 27534 | -6/Garrison | Triggered checkpoint 27549 | -6/Garrison | Triggered checkpoint 27586 | -6/Garrison | Destroyed 15 combat bots 27652 | -6/Garrison | Discovered new exit (range 12) 27767 | -6/Garrison | Lost 3 parts (1u2w) 27892 | -6/Garrison | Phase Generator disabled 28062 | -6/Garrison | Garrison Relay disabled 28115 | -6/Garrison | Discovered new exit (range 11) 28157 | -6/Garrison | Triggered checkpoint 28190 | -6/Garrison | Garrison Relay disabled 28194 | -6/Garrison | Garrison Relay disabled 28196 | -6/Garrison | Garrison Relay disabled 28198 | -6/Garrison | Garrison Relay disabled 28287 | -6/Garrison | Triggered checkpoint 28352 | -6/Garrison | Discovered new exit (range 14) 28651 | -6/Garrison | Destroyed B-86 Titan 28697 | -6/Garrison | Destroyed B-90 Cyclops 28759 | -6/Garrison | Rewired B-75 Beast 28776 | -6/Garrison | Rewired B-75 Beast 29024 | -6/Garrison | Entered Factory 29024 | -5/Factory | Accompanied by 2 allies 29024 | -5/Factory | Evolved 2 slots: Utility x2 29324 | -5/Factory | First assault squad dispatched 29438 | -5/Factory | Garrison activated, responded to threat 29452 | -5/Factory | Allies destroyed Beast 5a 29513 | -5/Factory | High security lockdown imminent 29571 | -5/Factory | Discovered new exit (range 5) 29578 | -5/Factory | Identified exit to Factory 29593 | -5/Factory | High security lockdown engaged 29607 | -5/Factory | Joined by Warlord Geek squad 29694 | -5/Factory | Discovered new exit (range 8) 29702 | -5/Factory | Identified exit to Upper Caves 29851 | -5/Factory | Entered Upper Caves 29881 | -5/Upper Caves | Lost 4 parts (1n1u2w) 30084 | -5/Upper Caves | Build established: Mutant 30269 | -5/Upper Caves | Attracted the attention of an 0b10 checkpoint 30662 | -5/Upper Caves | Build established: Gunner 30700 | -5/Upper Caves | Discovered new exit (range 14) 31576 | -5/Upper Caves | Entered another Upper Caves area 31576 | -5/Upper Caves | Accompanied by 1 ally 31701 | -5/Upper Caves | Discovered exit to Factory (range 10) 32297 | -5/Upper Caves | Spotted B-75 Beast 32369 | -5/Upper Caves | Destroyed B-75 Beast 32412 | -5/Upper Caves | Lost 8 parts (1n3u4w) 32814 | -5/Upper Caves | Attracted the attention of an 0b10 outpost 32914 | -5/Upper Caves | Build established: Derelict-Mutant 32944 | -5/Upper Caves | Discovered new exit (range 14) 33582 | -5/Upper Caves | Entered Zhirov 33582 | -5/Zhirov | Discovered new exit (range 3) 33608 | -5/Zhirov | Met Zhirov 33641 | -5/Zhirov | Found Alien Artifact 33641 | -5/Zhirov | Identified Integrated Dissipator 33641 | -5/Zhirov | Installed Integrated Dissipator, increased core heat dissipation (+20) 33820 | -5/Zhirov | Learned location of Quarantine (-3) 33820 | -5/Zhirov | Learned location of Command (-1) 33839 | -5/Zhirov | Zhirov requested help retrieving the SGEMP Prototype 33861 | -5/Zhirov | Found Alien Artifact 33945 | -5/Zhirov | System corruption reached 10% 33945 | -5/Zhirov | Entered Proximity Caves 33947 | -4/Proximity Caves | Greeted by an Infiltrator in a former 0b10 base 34085 | -4/Proximity Caves | Former 0b10 base attacked by MAIN.C 34118 | -4/Proximity Caves | Identified Heart of Steel 34319 | -4/Proximity Caves | Heart of Steel transformed into Warbot 34445 | -4/Proximity Caves | 0b10 base defense nominally successful 34563 | -4/Proximity Caves | Lost 6 allies 34575 | -4/Proximity Caves | Destroyed 7 combat bots 34865 | -4/Proximity Caves | Build established: Scavenger-Tank 34971 | -4/Proximity Caves | Attracted the attention of an 0b10 checkpoint 34980 | -4/Proximity Caves | Learned location of 1 exit from Research 35023 | -4/Proximity Caves | Found DCF Scrap (15 items) 35527 | -4/Proximity Caves | Attracted the attention of an 0b10 outpost 35726 | -4/Proximity Caves | Discovered exit to Factory (range 11) 35849 | -4/Proximity Caves | Entered Factory 35849 | -4/Factory | Accompanied by 2 allies (Warbot) 35849 | -4/Factory | Evolved 2 slots: Power x1, Propulsion x1 35975 | -4/Factory | Garrison activated, responded to threat 35979 | -4/Factory | Garrison activated, responded to threat 36108 | -4/Factory | Spotted B-86 Titan 36179 | -4/Factory | Build established: Scavenger-Gunner 36821 | -4/Factory | Discovered new exit (range 5) 36908 | -4/Factory | Identified exit to Research 37562 | -4/Factory | Build established: Scientist-Gunner 37717 | -4/Factory | Discovered exit to Research (range 16) 37965 | -4/Factory | Learned 2 Proximity Caves zone layouts 37996 | -4/Factory | Learned location of 2 exits from Proximity Caves 38016 | -4/Factory | Learned Testing security intel 38025 | -4/Factory | Learned 12 Research zone layouts 38035 | -4/Factory | Learned location of 1 exit from Upper Caves 38504 | -4/Factory | Discovered new exit (range 5) 38599 | -4/Factory | First assault squad dispatched 38689 | -4/Factory | Garrison activated, responded to threat 38715 | -4/Factory | Incoming assault squad redirected 38771 | -4/Factory | Destroyed 10 combat bots 38819 | -4/Factory | Manually triggered Chute Trap 38819 | -4/Factory | Sucked down chute 38819 | -4/Factory | Entered Waste 38820 | -4/Waste | Met a frightened Derelict 38830 | -4/Waste | Destroyed C-40 Crusher 38834 | -4/Waste | Spotted C-40 Crusher 38850 | -4/Waste | Destroyed C-40 Crusher 38864 | -4/Waste | Spotted C-40 Crusher 38875 | -4/Waste | Destroyed C-40 Crusher 38875 | -4/Waste | Destroyed C-40 Crusher 38879 | -4/Waste | Spotted C-40 Crusher 38881 | -4/Waste | Destroyed C-40 Crusher 38888 | -4/Waste | Spotted C-40 Crusher 38890 | -4/Waste | Destroyed C-40 Crusher 38987 | -4/Waste | Warlord forces began an assault 39194 | -4/Waste | Discovered new exit (range 12) 39302 | -4/Waste | Build established: Scavenger-Gunner 39316 | -4/Waste | Entered Factory 39316 | -4/Factory | Accompanied by 20 allies 39495 | -4/Factory | Discovered exit to Research (range 10) 39809 | -4/Factory | Lost 3 allies 39816 | -4/Factory | First assault squad dispatched 39837 | -4/Factory | Incoming assault squad redirected 39844 | -4/Factory | Incoming assault squad redirected 39991 | -4/Factory | Discovered new exit (range 14) 40078 | -4/Factory | Garrison activated, responded to threat 40100 | -4/Factory | High security lockdown imminent 40109 | -4/Factory | Lost 3 allies 40116 | -4/Factory | Build established: Scientist-Gunner 40129 | -4/Factory | Central database locked down 40180 | -4/Factory | High security lockdown engaged 40188 | -4/Factory | Entered Upper Caves 40188 | -4/Upper Caves | Accompanied by 7 allies 40189 | -4/Upper Caves | Identified exit to Upper Caves 40325 | -4/Upper Caves | Learned location of 1 exit from Research 40325 | -4/Upper Caves | Learned Extension emergency access door positions 40325 | -4/Upper Caves | Learned Research security intel 40325 | -4/Upper Caves | Learned Extension terminal intel 40419 | -4/Upper Caves | Encountered a Warlord checkpoint 40419 | -4/Upper Caves | Learned Research terminal intel 40573 | -4/Upper Caves | Attracted the attention of an 0b10 base 41225 | -4/Upper Caves | Found Alien Artifact 41225 | -4/Upper Caves | Identified Core Expander 41225 | -4/Upper Caves | Installed Core Expander, added new Propulsion slot 41297 | -4/Upper Caves | Learned Research emergency access door positions 41498 | -4/Upper Caves | Build established: Scavenger-Gunner 41725 | -4/Upper Caves | Entered another Upper Caves area 41725 | -4/Upper Caves | Accompanied by 6 allies 41778 | -4/Upper Caves | Lost 3 allies 41788 | -4/Upper Caves | Discovered exit to Research (range 7) 42088 | -4/Upper Caves | Attracted the attention of an 0b10 checkpoint 42106 | -4/Upper Caves | Discovered new exit (range 15) 42158 | -4/Upper Caves | Attracted the attention of an 0b10 base 42235 | -4/Upper Caves | Encountered a Warlord checkpoint 42661 | -4/Upper Caves | Learned Factory security intel 42864 | -4/Upper Caves | Entered Warlord 42903 | -4/Warlord | System corruption cleaned by Quarantine Array 43362 | -4/Warlord | Opened Warlord's prototype stash 43380 | -4/Warlord | Found Vortex Chain Reactor 43385 | -4/Warlord | Found Prototype Processor 43385 | -4/Warlord | Identified Exp. Targeting Computer 43392 | -4/Warlord | Found Prototype Device 43392 | -4/Warlord | Identified Thermal Barrier 43399 | -4/Warlord | Found Prototype Hackware 43501 | -4/Warlord | Warlord's base attacked by MAIN.C 43603 | -4/Warlord | Found Prototype Energy Gun 43605 | -4/Warlord | Found Prototype Energy Gun 43612 | -4/Warlord | Found Prototype Piercing Weapon 43612 | -4/Warlord | Identified Vortex Lance 43673 | -4/Warlord | Build established: Commander-Gunner 43762 | -4/Warlord | Found Prototype Special Weapon 43764 | -4/Warlord | Found Prototype Special Weapon 43766 | -4/Warlord | Found Prototype Special Weapon 43768 | -4/Warlord | Found Prototype Special Weapon 43770 | -4/Warlord | Found Prototype Special Weapon 43772 | -4/Warlord | Found Prototype Special Weapon 43851 | -4/Warlord | Warlord forces counterattacked 43875 | -4/Warlord | Spotted Striker 43895 | -4/Warlord | Spotted Striker 43936 | -4/Warlord | Destroyed 12 combat bots 43938 | -4/Warlord | Lost 9 allies 43974 | -4/Warlord | Met Warlord 44006 | -4/Warlord | Spotted B-86 Titan 44015 | -4/Warlord | Destroyed B-86 Titan 44022 | -4/Warlord | Spotted B-90 Cyclops 44030 | -4/Warlord | Destroyed B-90 Cyclops 44088 | -4/Warlord | Spotted B-90 Cyclops 44153 | -4/Warlord | Spotted Striker 44176 | -4/Warlord | Warlord base infiltrated, sounded retreat 44179 | -4/Warlord | Destroyed Striker 44205 | -4/Warlord | Identified RU-N14's Throwing Claymores v3 (x6) 44213 | -4/Warlord | Spotted Executioner 44229 | -4/Warlord | Lost 4 allies 44244 | -4/Warlord | Destroyed Executioner 44279 | -4/Warlord | Destroyed 12 combat bots 44309 | -4/Warlord | Spotted Executioner 44321 | -4/Warlord | Destroyed Executioner 44392 | -4/Warlord | Discovered new exit (range 15) 44456 | -4/Warlord | Entered Proximity Caves 44509 | -3/Proximity Caves | Spotted B-86 Titan 44518 | -3/Proximity Caves | Destroyed B-86 Titan 44599 | -3/Proximity Caves | Build established: Scientist-Gunner 44645 | -3/Proximity Caves | Spotter reported a threat 44898 | -3/Proximity Caves | Acquired the password to a Derelict Tinkerer's latest research 44905 | -3/Proximity Caves | Found Prototype Special Weapon 45081 | -3/Proximity Caves | Caught by Unaware searching for contraband prototypes 45111 | -3/Proximity Caves | Attracted the attention of an 0b10 checkpoint 45130 | -3/Proximity Caves | Caught by Unaware searching for contraband prototypes 45206 | -3/Proximity Caves | Entered Research 45206 | -3/Research | Evolved 2 slots: Utility x2 45207 | -3/Research | Identified exit to Research 45208 | -3/Research | Identified exit to Quarantine 45211 | -3/Research | Loaded intel: 23 terminal locations 45222 | -3/Research | Identified Ghost Barrier 45695 | -3/Research | Build established: Hacker-Gunner 45989 | -3/Research | Destroyed 7 combat bots 46100 | -3/Research | Found Unknown Launcher 46100 | -3/Research | Identified Fusion Bomb Launcher 46194 | -3/Research | Incoming investigation squad redirected 46236 | -3/Research | Garrison activated, responded to threat 46313 | -3/Research | Destroyed 10 combat bots 46331 | -3/Research | Build established: Scavenger-Gunner 46377 | -3/Research | Discovered exit to Quarantine (range 15) 46433 | -3/Research | Spotted B-86 Titan 46456 | -3/Research | First assault squad dispatched 46474 | -3/Research | Incoming assault squad redirected 46479 | -3/Research | Incoming assault squad redirected 46484 | -3/Research | System corruption reached 10% 46529 | -3/Research | Destroyed B-86 Titan 46546 | -3/Research | Lost 3 parts (1n1u1w) 46976 | -3/Research | Incoming assault squad redirected 46983 | -3/Research | Incoming assault squad redirected 46985 | -3/Research | Incoming assault squad redirected 47003 | -3/Research | Identified Molecular Deconstructor 47090 | -3/Research | Entered Quarantine 47142 | -3/Quarantine | Targeted by mysterious "MATRIX" hacker 47156 | -3/Quarantine | Build established: Gunner 47318 | -3/Quarantine | Spotted Alpha 7 47328 | -3/Quarantine | Destroyed Alpha 7 47340 | -3/Quarantine | First assault squad dispatched 47358 | -3/Quarantine | Incoming assault squad redirected 47477 | -3/Quarantine | Destroyed 8 combat bots 47606 | -3/Quarantine | Incoming assault squad redirected 47617 | -3/Quarantine | Found Alien Artifact 47617 | -3/Quarantine | Identified Terrabomb 47617 | -3/Quarantine | Used Terrabomb 47789 | -3/Quarantine | Found Alien Artifact 47789 | -3/Quarantine | Identified Subatomic Replicator 47799 | -3/Quarantine | Used Subatomic Replicator to replicate Hvy. Armored Exoskeleton+ 47902 | -3/Quarantine | Found Alien Launcher 47902 | -3/Quarantine | Identified Sigix Terminator 48113 | -3/Quarantine | Incoming assault squad redirected 48155 | -3/Quarantine | Found Fusion Bomb Launcher 48547 | -3/Quarantine | Discovered exit to Research (range 14) 48559 | -3/Quarantine | High security lockdown imminent 48582 | -3/Quarantine | Cryocooling Duct disabled 48585 | -3/Quarantine | Cryocooling Duct disabled 48597 | -3/Quarantine | Ambient heat levels rising (+20) 48600 | -3/Quarantine | Ambient heat levels rising (+20) 48639 | -3/Quarantine | High security lockdown engaged 48660 | -3/Quarantine | Cryocooling Duct disabled 48675 | -3/Quarantine | Ambient heat levels rising (+20) 48729 | -3/Quarantine | Cryocooling Duct disabled 48744 | -3/Quarantine | Ambient heat levels rising (+20) 48808 | -3/Quarantine | Spotted Investigator 48809 | -3/Quarantine | Destroyed Investigator 48822 | -3/Quarantine | Found Prototype Launcher 48822 | -3/Quarantine | Identified Containment Facilitator 48836 | -3/Quarantine | Destroyed 14 combat bots 49112 | -3/Quarantine | Spotted Executioner 49161 | -3/Quarantine | Garrison activated, responded to threat 49162 | -3/Quarantine | Destroyed Executioner 49448 | -3/Quarantine | Spotted Striker 49463 | -3/Quarantine | Found Prototype Processor 49463 | -3/Quarantine | Identified Exp. Core Analyzer 49966 | -3/Quarantine | Met incapacitated Sigix Warrior 49966 | -3/Quarantine | Lockdown squad dispatched 50019 | -3/Quarantine | Spotted Lightning 50024 | -3/Quarantine | Destroyed Lightning 50024 | -3/Quarantine | Spotted Lightning 50033 | -3/Quarantine | Destroyed Lightning 50038 | -3/Quarantine | Spotted Lightning 50041 | -3/Quarantine | Destroyed Lightning 50052 | -3/Quarantine | Spotted Executioner 50095 | -3/Quarantine | Destroyed Executioner 50246 | -3/Quarantine | Spotted Fortress 50374 | -3/Quarantine | Destroyed Fortress 50538 | -3/Quarantine | Discovered new exit (range 6) 50538 | -3/Quarantine | Discovered new exit (range 6) 51042 | -3/Quarantine | Build established: Scavenger-Gunner 51047 | -3/Quarantine | Entered Section 7 51064 | -3/Section 7 | Found Alien Artifact 51064 | -3/Section 7 | Identified Core Reset Matrix 51064 | -3/Section 7 | Identified Transdimensional Reconstructor 51064 | -3/Section 7 | Used Core Reset Matrix 51068 | -3/Section 7 | Detected hypermatrix surge 51068 | -3/Section 7 | Sensed 21 artifacts in vicinity 51069 | -3/Section 7 | Incoming investigation squad redirected 51297 | -3/Section 7 | First assault squad dispatched 51311 | -3/Section 7 | Found Spacefold Activator 51343 | -3/Section 7 | Spotted S7 Guard 51360 | -3/Section 7 | Destroyed S7 Guard 51510 | -3/Section 7 | Found Integrated Thermoelectric Network 51510 | -3/Section 7 | Installed Integrated Thermoelectric Network, gained heat-energy exchange potential 51533 | -3/Section 7 | Discovered exit to Research (range 15) 51569 | -3/Section 7 | Incoming assault squad redirected 51652 | -3/Section 7 | Spotted S7 Guard 51660 | -3/Section 7 | Found Navigation Efficiency Matrix 51660 | -3/Section 7 | Installed Navigation Efficiency Matrix, process failed with unexpected side effects 51672 | -3/Section 7 | Destroyed S7 Guard 51814 | -3/Section 7 | Incoming assault squad redirected 51831 | -3/Section 7 | Core integrity fell below 50% 51844 | -3/Section 7 | Found Integrated Mediator 51844 | -3/Section 7 | Installed Integrated Mediator, increased core attachment efficiency 51846 | -3/Section 7 | Incoming assault squad redirected 51883 | -3/Section 7 | Spotted Alpha 7 51923 | -3/Section 7 | Found Fusion Bomb Launcher 51963 | -3/Section 7 | Build established: Alien-Gunner 51981 | -3/Section 7 | Spotted Alpha 7 52003 | -3/Section 7 | Spotted Executioner 52003 | -3/Section 7 | Spotted Executioner 52019 | -3/Section 7 | Scanned by Researcher 52020 | -3/Section 7 | Intercept squad dispatched 52031 | -3/Section 7 | Spotted Tracker 52038 | -3/Section 7 | Destroyed Tracker 52049 | -3/Section 7 | Warped through subspace 52054 | -3/Section 7 | Found Transdimensional Reconstructor 52059 | -3/Section 7 | Found Hpw. Transdimensional Reconstructor 52063 | -3/Section 7 | Found Transdimensional Reconstructor 52066 | -3/Section 7 | Found Hpw. Transdimensional Reconstructor 52067 | -3/Section 7 | Warped through subspace 52073 | -3/Section 7 | Warped through subspace 52142 | -3/Section 7 | Spotted B-99 Colossus 52162 | -3/Section 7 | Core integrity fell below 20% 52189 | -3/Section 7 | Found Integrated Reactor 52189 | -3/Section 7 | Installed Integrated Reactor, increased core energy generation (+10) 52192 | -3/Section 7 | Found Integrated Reactor 52192 | -3/Section 7 | Installed Integrated Reactor, increased core energy generation (+10) 52320 | -3/Section 7 | Found LRC Storage 52320 | -3/Section 7 | Installed LRC Storage, increased inventory capacity (+2) 52325 | -3/Section 7 | Incoming assault squad redirected 52356 | -3/Section 7 | Found Integrity Redistributor 52356 | -3/Section 7 | Used Integrity Redistributor, redistributed integrity to core (+229) 52379 | -3/Section 7 | Warped through subspace 52459 | -3/Section 7 | Lost 12 parts (1p3n4u4w) 52516 | -3/Section 7 | Warped through subspace 52552 | -3/Section 7 | Destroyed by H-77 Assassin with Coil Gun Last Messages --------------- 52510_ Penetrated by Slug. 52510_ Slug penetrates Wall. 52513_ Door malfunctions. 52515_ Spacefolded through Wall. 52515_ Slug penetrates Wall. 52516_ Warped through subspace. 52524_ Navigation matrix triggers involuntary quantum shift. 52530_ Acquired Unknown Leg. 52530_ Identified Imp. Thunder Leg. 52532_ Acquired Imp. Thunder Leg. 52544_ Slug penetrates Wall. 52547_ ALERT: Unidentified disturbance in Zone 9A, assault force dispatched. 52547_ H-77 Assassin knocked back. 52548_ Penetrated by Slug. 52549_ The unstable cave ceiling collapses. 52549_ Slug penetrates Wall. 52550_ H-77 Assassin destroyed. 52552_ Penetrated by Slug. Map ----- +----------------------------------------------------+ | # ""????????????????????????? | | #### ##################????????????????????????? | | #??# #??????? #???????????????????????????? | | ###### ##???? #???????????????????????????? | | #?? #???????????????????????????? | | # #???????????????????????????? | | + "??????????????????????????? | | # "???????????????????????????? | | ######## R??????????????????????????? | | #???????? "???????????????????????????? | | #???????? ?????????????????????# ] # | | #????????? ??????????????????????+ | | #?????????? ??????????????????????# # | | #?????????? ?????????????????????????????# | | #???????????###+###????????????????????????????## | | ###########????????????????????????????????????# | | # #????????????????????????????????????## | | # #?????????????????????????????????????# | | # ??????????????????????????????????????# | | # ???????????????????????????????????????# | | # """"""????????????????????????????????????????? | | + """"""????????????????????????????????????????? | | # """"""??????? ????????????????????????????????? | | # ?????? ####????????????????????????????? | | #########?????? #?###########???????#????????? | | #??????????????# #?# @ #???????# ?????? | | #??????????????# ### #???????#! ????? | | #??????????????# + #???????# """# | | #??????????????# # ! ?????# """# | | #??????????????# + ""??# """# | | #??????????????+ ## ???? """# | | =####???????????# ## =h ????? """# | | | #???????????# ## % ??????? # | | = % ############# ######+ ##########+# | | !%= % % | | ## !! ] | | """### != %% | | + * = %%% | | #############+########+# ########+######## | | #????# # [= #?????# %" [ #??# | | #????# # !!==/#????## #??# | | #????# """ """ # * #????##%%%" " #??# | | #????# " " " # #????##%%"" ""#??# | | #????# """ "" # #????##%%"""""#??# | | "#???# """ # #?????# """"""#??# | | #######???# "" " " "" # #?????#########??# | | ??????????# "" """ "" # #????????????????# | | ??????????# # ! #????????????????# | | ??????????# ##########????????????????# | | ??????????# ???????????????????????????? | +----------------------------------------------------+ Best States ------------- Heat Dissipation 123 Coolant Potential 65 Energy Generation 75 Energy Capacity 700 Matter Stores 300 Matter Capacity 300 Sight Range 22 Terrain Scan Range 16 Terrain Scan Density 10 Jamming Range 16 Armor Coverage 450 Resistance: TH 50 Propulsion Shielding 66 Weapon Shielding 90 Weapon Cycling 25 Evasion (%) 70 Targeting Accuracy 40 Target Analysis 8 Core Analysis 8 Armor Integrity Analysis 40 Recoil Reduction 11 Kinecelleration 40 Salvage Targeting 4 Offensive Hacking 24 Defensive Hacking 20 Item Schematics ----------------- None Robot Schematics ------------------ None Fabricated ------------ Combat Drone Bay | x1 | -6/Factory Repaired ---------- Assault Rifle | 63% | -10/Materials Gauss Rifle | 35% | -8/Materials Enh. Autogun | 56% | -8/Materials Hvy. Assault Rifle | 71% | -8/Materials Gauss Rifle | 7% | -8/Materials Med. Reflective Plating | 1% | -7/Factory Studied --------- None Alien Tech Used ----------------- Dimensional Node Initializer Integrated Dissipator Core Expander Terrabomb Subatomic Replicator Sigix Terminator Core Reset Matrix Spacefold Activator Integrated Thermoelectric Network Navigation Efficiency Matrix Integrated Mediator Transdimensional Reconstructor Integrated Reactor LRC Storage Integrity Redistributor High-powered Transdimensional Reconstructor Achievements -------------- Hot Stuff Pyromaniac Special Forces Tailor-made Walls Are Suggestions Challenges ------------ None Game ------ Seed SpectralDecoderScythe Manual? 0 Play Time 06:35:04 Cumulative 787.0 hours Start 2026.09.13 @ 07:11:48 End 2026.09.13 @ 13:54:16 Sessions 1 Manual Loads 0 Difficulty Rogue Special Mode None Game No. 382 Rogue 382 Adventurer 0 Explorer 0 Win Type - Total 7 Types 3/0/2/1/0/0/0/0/0/1 Lore% 86 Gallery% 77 Achievement% 62 Wizard Run 0 Options --------- Layout 2 ASCII 0 Keyboard 1 Movement Vi Keybinds 0 Fullscreen 1 Font 16/Proggy Map View 55x47 Zoom Use 0% Tactical HUD 1 Map Filters NONE Filters NONE Steam 0 RUN: 87b0f382-4d1c-4533-aab0-5dd41d6630e4